Workbook

Sheet Cover Page
D1: Add company logo
N2: Version 23.4a (for incinerators) - 15/11/2023
N4: Note that there is another version of this template available for co-incinerators
B8: Add photo
N13: Notes:
N14: This template may require adjustments by individual operators to meet specific reporting requirements as defined in the site Permit(s)
B29: Annual Performance Report 2023
B31: Permit EPR/BJ6178IX
B33: SUEZ R&R Kirklees EfW
B35: other name of facility (if applicable)
B37: Kirklees EfW
B39: Year: | C39: 2023
B41: Address: | C41: Diamond Street, Huddersfield, West Yorkshire HD1 6BZ
B43: Tel: | C43: 01484 448701
B45: Email: | C45: paula.bakes@suez.com
B47: Prepared by: | C47: Paula Bakes | F47: Position: | G47: EIR Manager
B49: Approved by: | C49: Mark Ryan | F49: Position: | G49: Plant Manager
B51: Version: | C51: 1
B53: Issue Date: | C53: 2024-01-01

Sheet Contents
A1: =+'Cover Page'!$B$29 -> Annual Performance Report 2023 | E1: =+'Cover Page'!$B$33 -> SUEZ R&R Kirklees EfW
A3: Contents | K3: Notes:
A4: Section | B4: Subject | H4: Page | K4: Section references and Page nos. to be inserted
B5: Facility Information | K5: Sections and Subjects may require adjustment by individual operators to meet specific reporting requirements as defined in the sites Permit(s)
B6: Operational Data
B7: Operational Summary
B8: Performance Form 1
B9: Energy Form 1
B10: Permit Compliance
B11: Improvements
B12: Public Liasion
B13: Carbon dioxide and nitrous oxide emissions
B14: Residue Quality
B15: Emissions to Water
B16: Emissions to Air (periodically monitored)
B17: Emissions to Air (continuously monitored)
B18: Hydrogen Chloride emissions
B19: Sulphur Dioxdie emsissions
B20: Oxides of Notrigen emissions
B21: Total Organic Carbon emissions
B22: Particulate Matter emissions
B23: Carbon Monoxide emissions
B24: Ammonia emissions
A27: Version Control
A28: Section | B28: Information | H28: Date
A35: Distribution
A36: Copy | B36: Name, Role | H36: No.
A45: This report is required under the Industrial Emissions Directive’s Article 55(2) requirements on reporting and public information on waste incineration plants and co-incineration plants, which require the operator to produce an annual report on the functioning and monitoring of the plant and make it available to the public.

Sheet Facility Info
A1: =+'Cover Page'!$B$29 -> Annual Performance Report 2023 | E1: =+'Cover Page'!$B$33 -> SUEZ R&R Kirklees EfW
A3: Plant Description and Design | K3: Notes:
A5: This non-hazardous waste incinerator operates 24/7 and can receive up to 150,000 tonnes of municipal waste from Kirklees Council as well as commercial/trade waste. The plant has one furnace line with a processing capacity of 136,000 tonnes per annum. The heat produced by waste incineration is used to raise superheated steam which generates 9.5 MWh of electricity. Activities associated with the incineration are receipt and storage of municipal waste, production of steam and electricity, abatement of flue gas and handling of Incinerator Bottom Ash (IBA) and Air Pollution Control Residue (APCR). (alt enter to make new para) | K5: Include summary of plant design, design capacity, no. of combustion lines, electrical and heat capacity and any other general information that descibes the facility, its location and purpose
A20: Summary of Operational Processes and Procedures
A22: Incoming waste is delivered to site by refuse collection trucks. It is then checked in, weighed and delivered into the reception hall. RECEPTION HALL A large reception hall allows for refuse collection trucks to manoeuvre and tip waste safely. Air needed for combustion is drawn into the furnace from here so that odour and dust do not escape the building. BUNKER Waste vehicles reverse to a wheel stop and tip their loads into a large concrete bunker. Mixing of waste occurs as the crane driver sorts the waste looking for unsuitable material to be removed, and to improve the homogeneity of the incinerator feedstock. CONTROL ROOM The plant’s control room centralises the operation of all equipment, including the grab crane used to mix and load waste into a hopper that feeds the furnace. All on-site functions are monitored automatically and manually. Its systems verify in real time that equipment is functioning properly, continuously monitor the combustion gas, and maximise the efficiency of the entire EfW process. GRATE AND BOILER Waste is lifted into the charging hoppers by the crane. From here it falls into the furnace-charging chute and then onto the grate system for incineration. The thermal energy released from the burning is used to convert water to super-heated steam. At high pressure, this steam drives a turbine to generate electricity. ELECTRICITY GENERATION Electricity is generated at 11kv, with an electric capacity of 9.5 MWh. INCINERATOR BOTTOM ASH (IBA) Ash left on the grate after incineration is carried by conveyor, after quenching, to a storage bunker. A magnet above the conveyor extracts ferrous material for recycling. The remaining bottom ash is trucked off-site for recycling. AIR-COOLED CONDENSERS After exiting the turbine, the air stream is cooled and condensed back into water through air condensers. This recovered water is treated and reused in the boilers to produce more steam. EMISSION CONTROL The gases from the furnace are subject to a rigorous cleaning process involving selective non-catalytic reduction (SNCR), spray absorbers, and active carbon injection. This removes oxides of nitrogen, acidic gases, dioxins, and heavy metals from the gas stream. AIR POLLUTION CONTROL RESIDUE (APCR) The cleaned gas passes through fine-fabric bag filters to remove solid particles before it is emitted through the stack. The resultant APCR residue, or fly-ash, contains particles from the incineration process, lime used in the spray absorbers, salts and carbon dust. It is stored in a sealed silo until it is tankered away for recycling. EMISSIONS MONITORING As they pass through the stack, the residual flue gases from the process are continuously monitored before release. This data is relayed automatically to the control room. | K22: Include summary of key processes and procedures such as (but not limited to); waste reception, control rooms, grate, bed and bolier, energy & heat generation, cooling systems, residue management, emission controls, health and safety systems, maintenance

Sheet Operational Data
A1: =+'Cover Page'!$B$29 -> Annual Performance Report 2023 | E1: =+'Cover Page'!$B$33 -> SUEZ R&R Kirklees EfW
A3: Operational Data
A4: Plant Size | D4: tonnes pa | F4: MWth | H4: MWe | J4: Notes:
A5: No. of combustion lines | B5: 1 | D5: No. of Turbines: | F5: 1 | J5: * - RDF to include SRF
J6: ** - Combusted tonnage = tonnes delivered in period + (tonnes in bunker at start of period – tonnes in bunker at end of period), or equivalent calculation depending on plant type
A7: Waste types received | B7: Unit | C7: Q1 | D7: Q2 | E7: Q3 | F7: Q4 | G7: Year Total | H7: %
A8: Household / Local Authority | B8: tonnes | C8: 34192 | D8: 25837 | E8: 34604 | F8: 32923 | G8: =SUM(C8:F8) -> 127556 | H8: =IF(G8>0,G8/$G$18,"-") -> 0.9635667289
A9: Commercial & Industrial | C9: 55 | D9: 431 | E9: 1339 | F9: 2138 | G9: =SUM(C9:F9) -> 3963 | H9: 0.02993677245 | J9: *** - CHP plants only
A10: Hazardous | G10: 0 | H10: - | J10: **** Availability Definition: 'the availability of a line is to be calculated by the number of hours the line reported Continuously Monitored emission levels to the Regulator through the calendar year divided by the total number of hours in that year. The overall plant availability is calculated as the Mean of all lines in the plant. For clarity this includes periods of abnormal operation.' Rationale: The primary function of an Energy from Waste facility is the disposal of waste. It follows therefore that the availability of a plant is determined by the period of time a facility spends undertaking this activity.
A11: Clinical | C11: 222 | D11: 219 | E11: 210 | F11: 209 | G11: 860 | H11: 0.006496498689
A12: Waste wood (biomass) | G12: 0 | H12: -
A13: Refuse Derived Fuel * - H'hold/LA | G13: =SUM(C13:F13) -> 0 | H13: -
A14: Refuse Derived Fuel * - C&I | G14: 0 | H14: -
A15: Other [Please specify] | G15: 0 | H15: -
A16: Other [Please specify] | G16: 0 | H16: -
A17: Other [Please specify] | G17: 0 | H17: -
A18: Total waste received | C18: =SUM(C8:C17) -> 34469 | D18: =SUM(D8:D17) -> 26487 | E18: =SUM(E8:E17) -> 36153 | F18: =SUM(F8:F17) -> 35270 | G18: 132379
A19: Rejected Waste | G19: =SUM(C19:F19) -> 0 | H19: =IF(G19>0,G19/$G$18,"-") -> -
A20: Unprocessed waste transferred out | G20: =SUM(C20:F20) -> 0 | H20: =IF(G20>0,G20/$G$18,"-") -> -
A21: Total waste combusted ** | C21: =C18-SUM(C19:C20) -> 34469 | D21: =D18-SUM(D19:D20) -> 26487 | E21: 36153 | F21: 35270 | G21: =SUM(C21:F21) -> 132379
J22: Password for protected cells A password has been set to prevent accidental editing of cells with formulae. If you still need to make an edit for some reason then the password = 1234
A23: Energy Usage / Export | B23: Unit | C23: Q1 | D23: Q2 | E23: Q3 | F23: Q4 | G23: Year Total | H23: KWh/te
A24: Power Generated | B24: MWh | C24: 21287 | D24: 16616 | E24: 21523 | F24: 22581 | G24: =SUM(C24:F24) -> 82007 | H24: =IF(G24>0,G24*1000/$G$21,"-") -> 619.4864744
A25: Power Exported | C25: 18422 | D25: 14343 | E25: 18620 | F25: 19562 | G25: =SUM(C25:F25) -> 70947 | H25: =IF(G25>0,G25*1000/$G$21,"-") -> 535.9384797
A26: Power Used on site | C26: 2865 | D26: 2273 | E26: 2903 | F26: 3019 | G26: =SUM(C26:F26) -> 11060 | H26: =IF(G26>0,G26*1000/$G$21,"-") -> 83.54799477
A27: Power Imported | C27: 212 | D27: 794 | E27: 18 | F27: 0 | G27: 1024 | H27: =IF(G27>0,G27*1000/$G$21,"-") -> 7.735365881
A28: Parasitic Load | B28: % | C28: =IF(C24>0,1-C25/(C24+C27),"-") -> 0.143122936 | D28: =IF(D24>0,1-D25/(D24+D27),"-") -> 0.1761631246 | E28: =IF(E24>0,1-E25/(E24+E27),"-") -> 0.1356018755 | F28: =IF(F24>0,1-F25/(F24+F27),"-") -> 0.1336964705 | G28: =IF(G24>0,1-G25/(G24+G27),"-") -> 0.1455360046
A29: Thermal Energy Produced *** | B29: MWh | G29: =SUM(C29:F29) -> 0 | H29: =IF(G29>0,G29*1000/$G$21,"-") -> -
A30: Thermal Energy Exported *** | G30: 0 | H30: =IF(G30>0,G30*1000/$G$21,"-") -> -
A31: R1 value (if applicable) | B31: R1
A33: Waste Disposal & Recovery | B33: Unit | C33: Q1 | D33: Q2 | E33: Q3 | F33: Q4 | G33: Year Total | H33: % inputs
A34: APC Residues - produced | B34: tonnes | C34: 1158 | D34: 912 | E34: 1266 | F34: 1283 | G34: =SUM(C34:F34) -> 4619 | H34: =IF(G34>0,G34/$G$21,"-") -> 0.03489224122
A35: IBA - produced | C35: 6582 | D35: 5486 | E35: 6847 | F35: 6728 | G35: 25643 | H35: =IF(G35>0,G35/$G$21,"-") -> 0.193708972
A36: Metals recycling | C36: 664 | D36: 531 | E36: 700 | F36: 683 | G36: =SUM(C36:F36) -> 2578 | H36: 0.01947438793
A37: Other | C37: 0 | D37: 0 | E37: 0 | F37: 0 | G37: =SUM(C37:F37) -> 0 | H37: -
A38: Other | C38: 0 | D38: 0 | E38: 0 | F38: 0 | G38: 0 | H38: -
A39: Other | C39: 0 | D39: 0 | E39: 0 | F39: 0 | G39: 0 | H39: -
A41: Raw Material Usage | B41: Unit | C41: Q1 | D41: Q2 | E41: Q3 | F41: Q4 | G41: Year Total | H41: kg or Ltr /te
A42: Mains Water | B42: ltrs | C42: 3000 | D42: 3000 | E42: 3000 | F42: 3000 | G42: =SUM(C42:F42) -> 12000 | H42: =IF(G42>0,G42/$G$21,"-") -> 0.09064881892
A43: Other Water | B43: ltrs | C43: 5352 | D43: 4790 | E43: 5068 | F43: 6808 | G43: 22018 | H43: =IF(G43>0,G43/$G$21,"-") -> 0.1663254746
A44: Ammonia | B44: kgs | G44: 0 | H44: -
A45: Urea | B45: kgs | C45: 81100 | D45: 69380 | E45: 84300 | F45: 55300 | G45: =SUM(C45:F45) -> 290080 | H45: 2.191284116
A46: Activated Carbon | B46: kgs | C46: 10029 | D46: 9384 | E46: 12864 | F46: 11520 | G46: 43797 | H46: 0.3308455269
A47: Lime / hydrated lime | B47: kgs | C47: 194270 | D47: 184210 | E47: 248050 | F47: 223730 | G47: 850260 | H47: 6.422922065
A48: Fuel oil | B48: ltrs | C48: 87106 | D48: 57338 | E48: 12834 | F48: 30983 | G48: 188261 | H48: 1.422136442
A49: Gas | B49: cuf | G49: 0
A50: Other | G50: 0
A52: Summary | B52: Line/Unit | C52: Q1 | D52: Q2 | E52: Q3 | F52: Q4 | G52: Year Total | I52: Hrs in year
A53: Availability of waste combustion by line, hrs **** | B53: =+B5 -> 1 | C53: 2006.33 | D53: 1581.25 | E53: 2183.58 | F53: 2176.67 | G53: =SUM(C53:F53) -> 7947.83 | H53: =+G53/$I$53 -> 0.9072865297 | I53: 8760
B54: 2 | G54: =SUM(C54:F54) -> 0 | H54: =+G54/$I$53 -> 0
B55: 3 | G55: 0 | H55: 0
B56: 4 | G56: 0 | H56: 0
B57: 5 | G57: =SUM(C57:F57) -> 0 | H57: 0
A58: Overall Availability, mean avg. of all lines, hrs | G58: =AVERAGE(G53:G57) -> 1589.566 | H58: 0.1814573059
A59: Hours of turbine operations, hrs | B59: 1 | C59: 2013 | D59: 1633 | E59: 2195 | F59: 2204 | G59: =SUM(C59:F59) -> 8045 | H59: 0.9183789954
A60: Hours of turbine operations, hrs | B60: 2 | G60: 0 | H60: 0
A61: Hours of heat / steam export | G61: 0 | H61: =IF(B61>0,G60/I53,"n/a") -> n/a
A62: Net Calorific Value of waste | B62: MJ/kg | C62: 9.459 | D62: 9.872 | E62: 9.915 | F62: 9.393 | G62: =AVERAGE(C62:F62) -> 9.65975
A63: Abnormal Events | B63: qty. | G63: =SUM(C63:F63) -> 0 | H63: =IF(G63>0,"yes","no") -> no
A64: Abnormal operation | B64: hours | G64: 0 | H64: =+(G64)/I53 -> 0
A65: Permit Breaches | B65: qty. | G65: 0 | H65: =IF(G65>0,"yes","no") -> no

Sheet Operational Summary
A1: =+'Cover Page'!$B$29 -> Annual Performance Report 2023 | E1: =+'Cover Page'!$B$33 -> SUEZ R&R Kirklees EfW
A3: Summary of Plant Operations and Maintenance during the reporting year | K3: Notes:
A5: Operations: 2 hours of unplanned downtime. The Issues were: Bottom ash extractor hydraulic drive motor failure. OEE has been excellent with minimum speed and quality losses. A Glass line coating has been applied in 2 of the 4 BHF hoppersas a trail to improve life cycle. A full set of new BHF bags have been fitted aswell aswel as a full new set of grate bars. | K5: Include summary of key operational and/or mainteanance activity undertaken in the year, such as any major component upgrades and/or replacements
A29: Summary of Residue Handling for the reporting year
A31: Canal side Wet slag extractor hydraulic drive failed. 5 Conveyor pans damaged by metal in residue stream. 5 Pans replaced with new. new componet fitted and extra checks put in place. Burn out quality has been very good all year even more so after a full set of 3 grates were fitted in the May outage, APCR contiues to be taken off site by Castle environment. No IBA exceedance but Investigations carried out if above 90% of limits. | K31: Include in here a summary of residue handling regimes and destinations

Sheet Perf. Form 1
A1: =+'Cover Page'!C39 -> 2023 | B1: Annual Reporting Performance Form 1
A3: =+'Cover Page'!B31 -> Permit EPR/BJ6178IX | F3: Operator: | G3: =+'Cover Page'!B37:I37 -> 0
A4: Facility: | B4: =+'Cover Page'!B33:I33 -> SUEZ R&R Kirklees EfW | F4: Form: | G4: Performance 1
A6: Reporting Period from: | D6: 2023-01-01 | F6: to: | G6: 2023-12-31
A8: =+A1 -> 2023 | B8: Annual Reporting of Waste Disposal and Recovery
A9: Waste Description | C9: Disposal Route(s) | E9: Disposal Tonnes | G9: Recovery Tonnes | I9: % / tonne of waste incinerated
A10: 1) Hazardous Wastes
A11: APC Residues | E11: 4619 | I11: =IF((E11+G11)>0,(E11+G11)/'Operational Data'!$G$21, "-") -> 0.03489224122
A12: IBA | I12: =IF((E12+G12)>0,(E12+G12)/'Operational Data'!$G$21, "-") -> -
I13: =IF((E13+G13)>0,(E13+G13)/'Operational Data'!$G$21, "-") -> -
I14: =IF((E14+G14)>0,(E14+G14)/'Operational Data'!$G$21, "-") -> -
A15: Total Hazardous Waste | E15: =SUM(E11:F14) -> 4619 | G15: =SUM(G11:H14) -> 0 | I15: =IF((E15+G15)>0,(E15+G15)/'Operational Data'!$G$21, "-") -> 0.03489224122
A17: 2) Non-Hazardous Wastes
A18: IBA | E18: 25643 | I18: =IF((E18+G18)>0,(E18+G18)/'Operational Data'!$G$21, "-") -> 0.193708972
A19: Ferrous Metal | E19: 2578 | I19: =IF((E19+G19)>0,(E19+G19)/'Operational Data'!$G$21, "-") -> 0.01947438793
A20: Process Water | I20: =IF((E20+G20)>0,(E20+G20)/'Operational Data'!$G$21, "-") -> -
I21: =IF((E21+G21)>0,(E21+G21)/'Operational Data'!$G$21, "-") -> -
I22: =IF((E22+G22)>0,(E22+G22)/'Operational Data'!$G$21, "-") -> -
A23: Total Non-Hazardous Waste | E23: =SUM(E18:F22) -> 28221 | G23: =SUM(G18:H22) -> 0 | I23: =IF((E23+G23)>0,(E23+G23)/'Operational Data'!$G$21, "-") -> 0.2131833599
A24: TOTAL WASTE | E24: =+E23+E15 -> 32840 | G24: =+G23+G15 -> 0 | I24: =IF((E24+G24)>0,(E24+G24)/'Operational Data'!$G$21, "-") -> 0.2480756011
A26: Operator’s comments :
A31: =+A1 -> 2023 | B31: Annual Reporting of Water and Other Raw Material Usage
A32: Raw Material | E32: Usage | G32: Unit | H32: Specific Useage | J32: Unit
A33: Mains Water | E33: =+'Operational Data'!G42 -> 12000 | G33: m3 | H33: =IF(E33>0,E33/'Operational Data'!$G$21,"-") -> 0.09064881892 | J33: m3/te
A34: Total Water | E34: =+'Operational Data'!G43+'Operational Data'!G42 -> 34018 | G34: m3 | H34: =IF(E34>0,E34/'Operational Data'!$G$21,"-") -> 0.2569742935 | J34: m3/te
A35: Urea / Ammonia | E35: ='Operational Data'!G45+'Operational Data'!G44 -> 290080 | G35: kg | H35: =IF(E35>0,E35/'Operational Data'!$G$21,"-") -> 2.191284116 | J35: kg/te
A36: Activated Carbon | E36: ='Operational Data'!G46 -> 43797 | G36: kg | H36: =IF(E36>0,E36/'Operational Data'!$G$21,"-") -> 0.3308455269 | J36: kg/te
A37: Lime / hydrated lime / Sodium Bicarb. | E37: ='Operational Data'!G47 -> 850260 | G37: kg | H37: =IF(E37>0,E37/'Operational Data'!$G$21,"-") -> 6.422922065 | J37: kg/te
A39: Operator’s comments :
A43: =+A31 -> 2023 | B43: Annual Reporting of other performance indicators
A44: Parameter | C44: Results by Line
C45: A1 | D45: A2 | E45: A3 | F45: A4 | G45: A5 | I45: Turbine 1 | J45: Turbine 2
A46: Operating hours for the year, hours | C46: 7948
A47: Number of periods of abnormal operation, qty. | C47: 0
A48: Cumulative hours of abnormal operation for this year, hours | C48: 0
A50: Operator’s comments :
A54: Signed: | G54: Date:

Sheet Energy Form 1
A1: =+'Cover Page'!C39 -> 2023 | B1: Annual Reporting of Energy Usage/Export
A3: =+'Cover Page'!B31 -> Permit EPR/BJ6178IX | F3: Operator: | G3: =+'Cover Page'!B37:I37 -> 0
A5: Facility: | B5: =+'Cover Page'!B33:I33 -> SUEZ R&R Kirklees EfW | F5: Form: | G5: Energy 1
A7: Reporting Period from: | D7: =+'Perf. Form 1'!D6:E6 -> 2023-01-01 | F7: to: | G7: =+'Perf. Form 1'!G6:H6 -> 2023-12-31
A9: Energy Source | D9: Energy Usage | F9: Unit | G9: Specific Useage (KWh/tonne incinerated
A10: Electricity Produced | D10: =+'Operational Data'!G24 -> 82007 | F10: MWh | G10: =+'Operational Data'!H24 -> 619.4864744
A11: Electricity Imported | D11: =+'Operational Data'!G27 -> 1024 | F11: MWh | G11: =+'Operational Data'!H27 -> 7.735365881
A12: Electricity Exported | D12: =+'Operational Data'!G25 -> 70947 | F12: MWh | G12: =+'Operational Data'!H25 -> 535.9384797
A13: Gas Oil | F13: tonnes
A14: Steam/hot water exported | D14: =+'Operational Data'!G30 -> 0 | F14: GWh | G14: =+'Operational Data'!H30 -> -
A18: Operator’s comments :
A29: Signed: | G29: Date:

Sheet Permit Compliance
A1: =+'Cover Page'!$B$29 -> Annual Performance Report 2023 | E1: =+'Cover Page'!$B$33 -> SUEZ R&R Kirklees EfW
A3: Summary of Permit Compliance
A5: Compliance with permit limits for continuously monitored pollutants
A7: The plant met its emission limits as shown in the table below:
A8: Substance | C8: Percentage time compliant during operationNote 1 | L8: Notes:
C9: Half-hourly limit | F9: Daily limit | L9: Note 1: Please report to 2 decimal places, i.e. xx.xx% Note 2: Please provide a brief summary of each notification or non-compliance in the table (rather than just referring to notifications that were sent to the Regulator), including stating the value of measured result for any ELV exceedances.
A10: Particulates | C10: 1 | F10: 1
A11: Oxides of nitrogen | C11: 1 | F11: 1
A12: Sulphur dioxide | C12: 1 | F12: 1
A13: Carbon monoxide | C13: 100% 95% of 10-min averages | F13: 1
A14: Total organic carbon | C14: 1 | F14: 1
A15: Hydrogen chloride | C15: 1 | F15: 1
A16: Hydrogen fluoride | C16: n/a | F16: n/a
C17: xx.xx % | F17: xx.xx %
A19: Summary of any notifications or non-compliances under the permit
A20: Date | B20: Summary of notification or non-compliance [including Line/Reference]Note 2 | E20: Reason | H20: Measures taken to prevent reoccurrence
A27: Summary of any complaints received and actions to taken to resolve them.
A28: Date | B28: Summary of complaint [including Line/Reference] | E28: Reason * | H28: Measures taken to prevent reoccurrence
E34: * including whether substantiated by the operator or the EA

Sheet Improvements
A1: =+'Cover Page'!$B$29 -> Annual Performance Report 2023 | E1: =+'Cover Page'!$B$33 -> SUEZ R&R Kirklees EfW
A3: Summary of Plant Improvements
A5: Summary of any efficiency improvements that have been completed within the year.
A6: Lime usage optimisation reducing the amount of free lime in the APCR sample. Optimisation of Urea usage whilst controlling Nox at <180mg/Nm3 daily.
A16: Summary of any permit improvement conditions that have been completed within the year and the resulting environmental benefits.
A17: Improvement condition -The operator shall submit a report to the Environment Agency on whether waste feed to the plant can be proven to have a low and stable mercury content. The report shall have regard to BAT 4 of the BAT conclusions, be based on historic mercury emissions monitoring data and have regard to the Environment Agency Mercury Monitoring Protocol. Improvement condition - The operator shall submit a report to the Environment Agency on whether dioxin emissions to air are stable. The report shall have regard to BAT 4 of the BAT conclusions, be based on historic dioxin emissions monitoring data and have regard to the Environment Agency Dioxins Monitoring Protocol.
A27: Summary of any changes to the plant or operating techniques which required a variation to the permit and a summary of the resulting environmental impact.
A28: No permit variations were initiated by SUEZ, the permit variation that was initiated by the EA to cover a BREF review.
A38: Summary of any other improvements made to the plant or planned to be made and a summary of the resulting environmental benefits.

Sheet Public Liasion
A1: =+'Cover Page'!$B$29 -> Annual Performance Report 2023 | E1: =+'Cover Page'!$B$33 -> SUEZ R&R Kirklees EfW
A3: Details of Public & Stakeholder Liasion
A5: Summary of events held during the reporting year.
A6: Date | C6: Description
A7: Monthly | C7: Monthly operational & contractual meeting held with the client (Kirklees Council)
A16: List of events planned for next year
A17: Date | C17: Description
A18: Monthly | C18: Monthly operational & contractual meeting held with the client (Kirklees Council)
A29: If you wish to be involved in the public liasion programme, please contact _________________

Sheet CO2 N2O
A1: =+'Cover Page'!$B$29 -> Annual Performance Report 2023 | C1: =+'Cover Page'!$B$33 -> SUEZ R&R Kirklees EfW
A3: Carbon dioxide emissions and biogenic content of waste inputs | F3: Notes:
A5: Carbon dioxide emissions (all types of plant)
B6: Annual mass of carbon dioxide released | C6: tonnes | D6: 99731.63
B7: Annual mass of carbon dioxide released per tonne of waste burned | C7: t CO2 / t waste | D7: =D6/'Operational Data'!G21 -> 0.7533795391
B8: Annual mass of carbon dioxide released per MWh of energy exported | C8: t CO2 / MWh export | D8: =D6/'Operational Data'!G25 -> 1.405720185
B9: Description of how annual carbon dioxide mass emission has been calculated. See Note 1 | C9: Directly from CEMS data. | F9: Note 1: Where available, data from CO2 CEMS should be used. Otherwise, only where no CEMS data is available, a suitable emissions factor should be used based on the tonnage of waste burned e.g.0.942 tCO2/t waste as per Tolvik report 2022, or other justified emissions factor - refer to embedded Environment Agency guidance note above or updated version for suitable descriptive text.
A10: Nitrous oxide emissions (only plants which use ammonia or urea to abate NOx emissions)
B11: Annual mass emissions of nitrous oxide | C11: tonnes N2O | D11: 2.15335
B12: Description of how annual nitrous oxide mass emission has been calculated See Note 2 | C12: Directly from CEMS data. | F12: Note 2: Where available, data from N2O CEMS should be used. If no CEMS data is available, from periodic monitoring. Otherwise, a suitable emissions factor should be used based on the tonnage of waste burned e.g. 0.0981 kgN20/t waste as per 2021 Pollution Inventory data for plants with urea-based SNCR - refer to embedded Environment Agency guidance note above or updated version for suitable descriptive text.
A13: Total annual carbon dioxide and nitrous oxide emissions. See Note 3. | C13: tonnes CO2e | D13: =D6+D11*298 -> 100373.3283 | F13: Note 3: Total annual carbon dioxide and nitrous oxide emissions reported as carbon dioxide equivalent where 1 tonne nitrous oxide is equivalent to 298 tonne carbon dioxide
A14: Biogenic CO2 emissions (See Note 4) | F14: Note 4: Only plants combusting residual municipal waste, refuse derived fuel or solid recovered fuel
B15: Percentage of total carbon dioxide emissions arising from biogenic waste | C15: % | D15: 0.5749
B16: No. of measurements undertaken | C16: Number | D16: N/A
B17: Description of how percentage biogenic carbon dioxide emissions have been measured or calculated. See Note 5 | C17: Assessed from breakdown of waste composition from third-party reporting (M.E.L) and the respective carbon content of each component. Assumed to be the same as the biogenic CO2 fraction of the total CO2 emissions from the plant as per note 5. | F17: Note 5: Examples include direct measurement via C14 method or BIOMA software - refer to embedded Environment Agency guidance note above or updated version for suitable descriptive text, quoting standards where relevant. Otherwise, as an approximation (and in lieu of any more accurate metrics which may be developed in future), the measured or estimated biogenic fraction by net calorific value can be assumed to be the same as the biogenic CO2 fraction of the total CO2 emissions from the plant.
A18: Biogenic fraction of waste feedstock (See Note 4)
B19: Yearly average biogenic percentage of the waste by net calorific value (NCV) | C19: % | D19: 0.575
B20: If sampling undertaken, no. of samples used to ascertain average biogenic % above | C20: Number | D20: 1
B21: Description of how biogenic percentage (by NCV) has been calculated or estimated. See Note 6 | C21: Assessed from breakdown of waste composition from third-party reporting (M.E.L) and the respective carbon content of each component | F21: Note 6: Where available, data from waste sampling should be used; otherwise, an estimated figure with justification can be used, or a figure assumed on the basis of a national average e.g. 2017 WRAP data for residual waste of 51.8% biogenic energy content - refer to embedded Environment Agency guidance note above or updated version for suitable descriptive text, quoting standards where relevant.
B23: Comments:

Sheet Residue Quality
A1: =+'Cover Page'!$B$29 -> Annual Performance Report 2023 | E1: =+'Cover Page'!$B$33 -> SUEZ R&R Kirklees EfW
A3: Residue Quality Monitoring Requirements
A5: Summary of monitoring undertaken and compliance
A6: Quarterly IBA and APCR samples are taken at Kirklees
A8: Weekly hazard assessments are carried out at Kirklees
A13: Commentary on any specific events
A14: Date & Event | C14: Description
A27: Residue Quality Monitoring Results
A28: Parameter (unit) | C28: Limit | D28: Normal Operation
D29: Bottom ash | F29: APC Residues
A30: Loss on Ignition (average %) | C30: <5%
A31: Total Organic Carbon (average %) | C31: <3% | D31: 1.2
A32: No. of Assessments Undertaken | C32: --- | D32: 1 per quarter Line 1
A33: No. of Hazardous Results | C33: --- | D33: Weekly hazard assessments unless Plant is on outage
A35: Comments :
A36: Quarterly samples are taken for 1 line none of the sample results for TOC were above 3%

Sheet Water
A1: =+'Cover Page'!$B$29 -> Annual Performance Report 2023 | E1: =+'Cover Page'!$B$33 -> SUEZ R&R Kirklees EfW
A3: Emissions to Water
A5: Summary of monitoring undertaken and compliance
A6: No water sampling carried out at Kirklees
A13: Commentary on any specific events
A14: Date & Event | C14: Description
A22: Emissions to Water / Sewer
A23: Parameter | D23: Monitoring Frequency | F23: Limit | G23: Target | H23: Max. | I23: Average

Sheet Air (periodic)
A1: =+'Cover Page'!$B$29 -> Annual Performance Report 2023 | E1: =+'Cover Page'!$B$33 -> SUEZ R&R Kirklees EfW
A3: Emissions to Air (periodically monitored)
A5: Summary of monitoring undertaken, standards used and compliance | K5: Notes:
K6: Template may require adjustment for any bespoke monitoring requirements of permit - please also check that all default ELV values, reference periods and the stated oxygen reference value match those for your plant, and edit if necessary!
A9: Results of emissions to air that are periodically monitored - oxygen reference 6%
A10: Substance | C10: Ref. Period | D10: Emission Limit Value* | F10: Average | K10: User to add additional tables as necessary, depending on whether quarterly or bi-annual reporting is required for the compliance year
F11: A1 | G11: A2 | H11: A3 | I11: A4 | J11: A5
A12: Hydrogen fluoride | C12: 1 hr | D12: 2 mg/m3 | F12: 0.025
A13: Cd and Th and their compounds | C13: 0.5-8hrs | D13: 0.05 mg/m3 | F13: 0.002
A14: Hg and its compounds | C14: 0.5-8hrs | D14: 0.05 mg/m3 | F14: 0.0015 | K14: * Denotes limits that were in force until 2 December 2023; from 3 December 2023 the following new limits applied (those not listed remained unchanged):
A15: Sb, As, Pb, Cr, Co, Cu, Mn, Ni, V and their compounds | C15: 0.5-8hrs | D15: 0.5 mg/m3 | F15: 0.0415
A16: Dioxins & Furans (I-TEQ) | C16: 6-8hrs | D16: 0.1 ng/m3 | F16: 0.03225 | K16: Substance | L16: Reference Period | M16: Emission Limit Value
A17: PCBs (WHO-TEQ Humans / Mammals) | C17: 6-8hrs | D17: None set ng/m3 | F17: 0.003121
A18: PCBs (WHO-TEQ Fish) | C18: 6-8hrs | D18: None set ng/m3 | F18: 4e-05 | K18: Hydrogen fluoride | L18: Average of three consecutive measurements of at least 30 minutes each | M18: 1 mg/m3
A19: PCBs (WHO-TEQ Birds) | C19: 6-8hrs | D19: None set ng/m3 | F19: 0.00217 | K19: Cd and Th and their compounds | L19: Average of three consecutive measurements of at least 30 minutes each | M19: 0.02 mg/m3
A20: Dioxins & Furans (WHO-TEQ Humans / Mammals) | C20: 6-8hrs | D20: None set ng/m3 | F20: 0.0315 | K20: Hg and its compounds | L20: Average of three consecutive measurements of at least 30 minutes each | M20: 0.02 mg/m3
A21: Dioxins & Furans (WHO-TEQ Fish) | C21: 6-8hrs | D21: None set ng/m3 | F21: 0.031 | K21: Sb, As, Pb, Cr, Co, Cu, Mn, Ni, V and their compounds | L21: Average of three consecutive measurements of at least 30 minutes each | M21: 0.3 mg/m3
A22: Dioxins & Furans (WHO-TEQ Birds) | C22: 6-8hrs | D22: None set ng/m3 | F22: 0.0605 | K22: Dioxins & Furans (I-TEQ) | L22: 6-8hrs | M22: 0.06 ng/m3
A23: Anthanthrene | C23: 6-8hrs | D23: None set µg/m3 | F23: 0.0017
A24: Benzo(a)anthracene | C24: 6-8hrs | D24: None set µg/m3 | F24: 0.0058
A25: Benzo(a)pyrene | C25: 6-8hrs | D25: None set µg/m3 | F25: 0.0019
A26: Benzo(b)fluoranthene | C26: 6-8hrs | D26: None set µg/m3 | F26: 0.00275
A27: Benzo(b)naptho(2,1-d) thiophene | C27: 6-8hrs | D27: None set µg/m3 | F27: 0.0017
A28: Benzo(c)phenanthrene | C28: 6-8hrs | D28: None set µg/m3 | F28: 0.0039
A29: Benzo(ghi)perylene | C29: 6-8hrs | D29: None set µg/m3 | F29: 0.0017
A30: Benzo(k)fluoranthene | C30: 6-8hrs | D30: None set µg/m3 | F30: 0.0017
A31: Cholanthrene | C31: 6-8hrs | D31: None set µg/m3 | F31: 0.0017
A32: Chrysene | C32: 6-8hrs | D32: None set µg/m3 | F32: 0.0066
A33: Cyclopenta(cd)pyrene | C33: 6-8hrs | D33: None set µg/m3 | F33: 0.0017
A34: Dibenzo(ai)pyrene | C34: 6-8hrs | D34: None set µg/m3 | F34: 0.0017
A35: Dibenzo(ah)anthracene | C35: 6-8hrs | D35: None set µg/m3 | F35: 0.0017
A36: Fluoranthene | C36: 6-8hrs | D36: None set µg/m3 | F36: 0.09035
A37: Indeno(123-cd) pyrene | C37: 6-8hrs | D37: None set µg/m3 | F37: 0.0017
A38: Naphthalene | C38: 6-8hrs | D38: None set µg/m3 | F38: 0.2041
A39: Comments :

Sheet Air (CEMS)
A1: =+'Cover Page'!$B$29 -> Annual Performance Report 2023 | I1: =+'Cover Page'!$B$33 -> SUEZ R&R Kirklees EfW
A3: Emissions to Air (continously monitored)
N4: Notes:
A5: Summary of monitoring undertaken, standards used and compliance | N5: Template may require adjustment for any bespoke monitoring requirements of permit
N6: Please check that all default ELV values match those for your plant and edit if necessary!
N7: Report to 1 decimal place
A11: Results of emissions to air that are continuously monitored (maximum and average values for each line) - oxygen reference 11%
A12: Substance | B12: Reference Period | C12: Emission Limit Value** | D12: A1 | F12: A2 | H12: A3 | J12: A4 | L12: A5
D13: Max. | E13: Avg. | F13: Max. | G13: Avg. | H13: Max. | I13: Avg. | J13: Max. | K13: Avg. | L13: Max. | M13: Avg. | N13: ** Denotes limits that were in force until 2 December 2023; from 3 December 2023 the following new limits applied (those not listed remained unchanged):
A14: Oxides of nitrogen | B14: Daily mean | C14: 200 mg/m3 | D14: =NOx!$O$19 -> 170 | E14: =NOx!$N$19 -> 148.8 | F14: =NOx!$O$34 -> 0 | G14: =NOx!$N$34 ->  | H14: =NOx!$O$49 -> 0 | I14: =NOx!$N$49 ->  | J14: =NOx!$O$64 -> 0 | K14: =NOx!$N$64 ->  | L14: =NOx!$O$79 -> 0 | M14: =NOx!$N$79 -> 
B15: ½ hourly mean | C15: 400 mg/m3 | D15: =NOx!$M$19 -> 207.4 | E15: =NOx!$L$19 -> 148.8 | F15: =NOx!$M$34 -> 0 | G15: =NOx!$L$34 ->  | H15: =NOx!$M$49 -> 0 | I15: =NOx!$L$49 ->  | J15: =NOx!$M$64 -> 0 | K15: =NOx!$L$64 ->  | L15: =NOx!$M$79 -> 0 | M15: =NOx!$L$79 ->  | N15: Substance | O15: Reference Period | P15: Emission Limit Value
A16: Particulates | B16: Daily mean | C16: 10 mg/m3 | D16: =Particulates!$O$19 -> 2.7 | E16: =Particulates!$N$19 -> 1.058333333 | F16: =Particulates!$O$34 -> 0 | G16: =Particulates!$N$34 ->  | H16: =Particulates!$O$49 -> 0 | I16: =Particulates!$N$49 ->  | J16: =Particulates!$O$64 -> 0 | K16: =Particulates!$N$64 ->  | L16: =Particulates!$O$79 -> 0 | M16: =Particulates!$N$79 -> 
B17: ½ hourly mean | C17: 30 mg/m3 | D17: =Particulates!$M$19 -> 11.7 | E17: =Particulates!$L$19 -> 1.058333333 | F17: =Particulates!$M$34 -> 0 | G17: =Particulates!$L$34 ->  | H17: =Particulates!$M$49 -> 0 | I17: =Particulates!$L$49 ->  | J17: =Particulates!$M$64 -> 0 | K17: =Particulates!$L$64 ->  | L17: =Particulates!$M$79 -> 0 | M17: =Particulates!$L$79 ->  | N17: Oxides of nitrogen | O17: Daily mean | P17: 180 mg/m3
A18: Total Organic Carbon | B18: Daily mean | C18: 10 mg/m3 | D18: =TOC!$O$19 -> 1.5 | E18: =TOC!$N$19 -> 0.3583333333 | F18: =TOC!$O$34 -> 0 | G18: =TOC!$N$34 ->  | H18: =TOC!$O$49 -> 0 | I18: =TOC!$N$49 ->  | J18: =TOC!$O$64 -> 0 | K18: =TOC!$N$64 ->  | L18: =TOC!$O$79 -> 0 | M18: =TOC!$N$79 ->  | N18: Particulates | O18: Daily mean | P18: 5 mg/m3
B19: ½ hourly mean | C19: 20 mg/m3 | D19: =TOC!$M$19 -> 8.3 | E19: =TOC!$L$19 -> 0.3583333333 | F19: =TOC!$M$34 -> 0 | G19: =TOC!$L$34 ->  | H19: =TOC!$M$49 -> 0 | I19: =TOC!$L$49 ->  | J19: =TOC!$M$64 -> 0 | K19: =TOC!$L$64 ->  | L19: =TOC!$M$79 -> 0 | M19: =TOC!$L$79 ->  | N19: Hydrogen chloride | O19: Daily mean | P19: 8 mg/m3
A20: Hydrogen chloride | B20: Daily mean | C20: 10 mg/m3 | D20: =HCl!$O$19 -> 3.8 | E20: =HCl!$N$19 -> 2.35 | F20: =HCl!$O$34 -> 0 | G20: =HCl!$N$34 ->  | H20: =HCl!$O$49 -> 0 | I20: =HCl!$N$49 ->  | J20: =HCl!$O$64 -> 0 | K20: =HCl!$N$64 ->  | L20: =HCl!$O$79 -> 0 | M20: =HCl!$N$79 ->  | N20: Sulphur dioxide | O20: Daily mean | P20: 40 mg/m3
B21: ½ hourly mean | C21: 60 mg/m3 | D21: =HCl!$M$19 -> 42.2 | E21: =HCl!$L$19 -> 2.35 | F21: =HCl!$M$34 -> 0 | G21: =HCl!$L$34 ->  | H21: =HCl!$M$49 -> 0 | I21: =HCl!$L$49 ->  | J21: =HCl!$M$64 -> 0 | K21: =HCl!$L$64 ->  | L21: =HCl!$M$79 -> 0 | M21: =HCl!$L$79 ->  | N21: Ammonia | O21: Daily mean | P21: 15 mg/m3
A22: Sulphur dioxide | B22: Daily mean | C22: 50 mg/m3 | D22: ='SO2'!$O$19 -> 45.6 | E22: ='SO2'!$N$19 -> 9.525 | F22: ='SO2'!$O$34 -> 0 | G22: ='SO2'!$N$34 ->  | H22: ='SO2'!$O$49 -> 0 | I22: ='SO2'!$N$49 ->  | J22: ='SO2'!$O$64 -> 0 | K22: ='SO2'!$N$64 ->  | L22: ='SO2'!$O$79 -> 0 | M22: ='SO2'!$N$79 -> 
B23: ½ hourly mean | C23: 200 mg/m3 | D23: ='SO2'!$M$19 -> 195.3 | E23: ='SO2'!$L$19 -> 9.525 | F23: ='SO2'!$M$34 -> 0 | G23: ='SO2'!$L$34 ->  | H23: ='SO2'!$M$49 -> 0 | I23: ='SO2'!$L$49 ->  | J23: ='SO2'!$M$64 -> 0 | K23: ='SO2'!$L$64 ->  | L23: ='SO2'!$M$79 -> 0 | M23: ='SO2'!$L$79 -> 
A24: Carbon monoxide | B24: Daily mean | C24: 50 mg/m3 | D24: ='CO 95% 10 min'!Q19 -> 42 | E24: ='CO 95% 10 min'!P19 -> 32 | F24: ='CO 95% 10 min'!Q34 -> 0 | G24: ='CO 95% 10 min'!P34 -> 0 | H24: ='CO 95% 10 min'!Q49 -> 0 | I24: ='CO 95% 10 min'!P49 -> 0 | J24: ='CO 95% 10 min'!Q64 -> 0 | K24: ='CO 95% 10 min'!P64 -> 0 | L24: ='CO 95% 10 min'!Q79 -> 0 | M24: ='CO 95% 10 min'!P79 -> 0
B25: ½ hourly mean * | C25: 100 mg/m3 *
B26: 95%ile 10-min avg * | C26: 150 mg/m3 * | D26: ='CO 95% 10 min'!M22 -> 97.17272727 | F26: ='CO 95% 10 min'!M34 -> 0 | H26: ='CO 95% 10 min'!M49 -> 0 | J26: ='CO 95% 10 min'!M64 -> 0 | L26: ='CO 95% 10 min'!M79 -> 0
A27: Ammonia | B27: Daily mean | C27: No limit set until 03/12/23 | D27: ='NH3'!$O$19 -> 2.7 | E27: ='NH3'!$N$19 -> 0.7833333333 | F27: ='NH3'!$O$34 -> 0 | G27: ='NH3'!$N$34 ->  | H27: ='NH3'!$O$49 -> 0 | I27: ='NH3'!$N$49 ->  | J27: ='NH3'!$O$64 -> 0 | K27: ='NH3'!$N$64 ->  | L27: ='NH3'!$O$79 -> 0 | M27: ='NH3'!$N$79 -> 
A28: ** = delete as appropriate, depending on whether your plant has half-horly or 10-min CO ELVs
A29: Comments :

Sheet HCl
A1: =+'Cover Page'!$B$29 -> Annual Performance Report 2023 | E1: =+'Cover Page'!$B$33 -> SUEZ R&R Kirklees EfW
A3: Monitoring of Hydrogen Chloride emissions | D3: Whole Installation | G3: See Notes in Cell Q3 | J3: =+A3 -> Monitoring of Hydrogen Chloride emissions | N3: Per Combustion Line | Q3: Notes:
Q4: User to add logic to complete Whole installation, Table A5:G18. From the data in Per Combustion Line, Table J6:O79, subject to No. of lines installed
A5: mg/Nm3 | B5: 1/2 Hourly Reference Periods | E5: Daily Reference Periods
A6: =+'Cover Page'!C39 -> 2023 | B6: 1/2 hourly HCl ELV | C6: Monthly 1/2 hourly mean | D6: Highest 1/2 hourly maximum | E6: Daily HCl ELV* | F6: Monthly daily mean | G6: Highest daily maximum | J6: =+A6 -> 2023 | K6: mg/Nm3 | L6: Monthly 1/2 hourly mean | M6: Monthly 1/2 hourly maximum | N6: Monthly daily mean | O6: Monthly daily maximum
A7: Jan | B7: 60 | C7: =AVERAGE(L7,L22,L37,L52,L67) -> 0.2 | D7: =MAX(M7,M22,M37,M52,M67) -> 11.7 | E7: 10 | F7: =AVERAGE(N7,N22,N37,N52,N67) -> 0.2 | G7: =MAX(O7,O22,O37,O52,O67) -> 0.9 | J7: A1 | K7: Jan | L7: 0.2 | M7: 11.7 | N7: 0.2 | O7: 0.9
A8: Feb | B8: 60 | C8: =AVERAGE(L8,L23,L38,L53,L68) -> 9.6 | D8: =MAX(M8,M23,M38,M53,M68) -> 0.4 | E8: 10 | F8: =AVERAGE(N8,N23,N38,N53,N68) -> 9.6 | G8: =MAX(O8,O23,O38,O53,O68) -> 1.5 | K8: Feb | L8: 9.6 | M8: 0.4 | N8: 9.6 | O8: 1.5
A9: Mar | B9: 60 | C9: 0.7 | D9: 14.4 | E9: 10 | F9: 0.7 | G9: 2.4 | K9: Mar | L9: 0.7 | M9: 14.4 | N9: 0.7 | O9: 2.4 | Q9: Whole Installation table A5:G18:
A10: Apr | B10: 60 | C10: 0.7 | D10: 42.2 | E10: 10 | F10: 0.7 | G10: 3 | K10: Apr | L10: 0.7 | M10: 42.2 | N10: 0.7 | O10: 3 | Q10: Mean: for 1/2 hourly and daily periods calculate mean of values across all operational combustion lines for the month
A11: May | B11: 60 | C11: 6.1 | D11: 8.7 | E11: 10 | F11: 6.1 | G11: 2.2 | K11: May | L11: 6.1 | M11: 8.7 | N11: 6.1 | O11: 2.2
A12: Jun | B12: 60 | C12: 0.7 | D12: 14.5 | E12: 10 | F12: 0.7 | G12: 1.8 | K12: Jun | L12: 0.7 | M12: 14.5 | N12: 0.7 | O12: 1.8
A13: Jul | B13: 60 | C13: 0.9 | D13: 16.5 | E13: 10 | F13: 0.9 | G13: 2.9 | K13: Jul | L13: 0.9 | M13: 16.5 | N13: 0.9 | O13: 2.9 | Q13: Maximum: for 1/2 hourly and daily periods use the highest value across all operational combustion lines for the month
A14: Aug | B14: 60 | C14: 0.9 | D14: 19.3 | E14: 10 | F14: 0.9 | G14: 2.2 | K14: Aug | L14: 0.9 | M14: 19.3 | N14: 0.9 | O14: 2.2
A15: Sep | B15: 60 | C15: 1.6 | D15: 11 | E15: 10 | F15: 1.6 | G15: 2.6 | K15: Sep | L15: 1.6 | M15: 11 | N15: 1.6 | O15: 2.6
A16: Oct | B16: 60 | C16: 2.3 | D16: 16.4 | E16: 10 | F16: 2.3 | G16: 3 | K16: Oct | L16: 2.3 | M16: 16.4 | N16: 2.3 | O16: 3
A17: Nov | B17: 60 | C17: 2.2 | D17: 15.3 | E17: 10 | F17: 2.2 | G17: 2.7 | K17: Nov | L17: 2.2 | M17: 15.3 | N17: 2.2 | O17: 2.7
A18: Dec | B18: 60 | C18: 2.3 | D18: 21.9 | E18: 10 | F18: 2.3 | G18: 3.8 | K18: Dec | L18: 2.3 | M18: 21.9 | N18: 2.3 | O18: 3.8
E19: * ELV reduced to 8 mg/Nm3 on 3 December 2023 | K19: Annual | L19: =AVERAGE(L7:L18) -> 2.35 | M19: =MAX(M7:M18) -> 42.2 | N19: =AVERAGE(N7:N18) -> 2.35 | O19: =MAX(O7:O18) -> 3.8
J21: =+A6 -> 2023 | K21: mg/Nm3 | L21: Monthly 1/2 hourly mean | M21: Monthly 1/2 hourly maximum | N21: Monthly daily mean | O21: Monthly daily maximum
J22: A2 | K22: Jan
K23: Feb
K24: Mar
K25: Apr
K26: May
K27: Jun
K28: Jul
K29: Aug
K30: Sep
K31: Oct
K32: Nov
K33: Dec
K34: Annual | L34: =AVERAGE(L22:L33) ->  | M34: =MAX(M22:M33) -> 0 | N34: =AVERAGE(N22:N33) ->  | O34: =MAX(O22:O33) -> 0
J36: =+A6 -> 2023 | K36: mg/Nm3 | L36: Monthly 1/2 hourly mean | M36: Monthly 1/2 hourly maximum | N36: Monthly daily mean | O36: Monthly daily maximum
J37: A3 | K37: Jan
K38: Feb
K39: Mar
K40: Apr
K41: May
K42: Jun
K43: Jul
K44: Aug
K45: Sep
K46: Oct
K47: Nov
A48: Comments : | K48: Dec
K49: Annual | L49: =AVERAGE(L37:L48) ->  | M49: =MAX(M37:M48) -> 0 | N49: =AVERAGE(N37:N48) ->  | O49: =MAX(O37:O48) -> 0
J51: =+A6 -> 2023 | K51: mg/Nm3 | L51: Monthly 1/2 hourly mean | M51: Monthly 1/2 hourly maximum | N51: Monthly daily mean | O51: Monthly daily maximum
J52: A4 | K52: Jan
K53: Feb
K54: Mar
K55: Apr
K56: May
K57: Jun
K58: Jul
K59: Aug
K60: Sep
K61: Oct
K62: Nov
K63: Dec
K64: Annual | L64: =AVERAGE(L52:L63) ->  | M64: =MAX(M52:M63) -> 0 | N64: =AVERAGE(N52:N63) ->  | O64: =MAX(O52:O63) -> 0
J66: =+A6 -> 2023 | K66: mg/Nm3 | L66: Monthly 1/2 hourly mean | M66: Monthly 1/2 hourly maximum | N66: Monthly daily mean | O66: Monthly daily maximum
J67: A5 | K67: Jan
K68: Feb
K69: Mar
K70: Apr
K71: May
K72: Jun
K73: Jul
K74: Aug
K75: Sep
K76: Oct
K77: Nov
K78: Dec
K79: Annual | L79: =AVERAGE(L67:L78) ->  | M79: =MAX(M67:M78) -> 0 | N79: =AVERAGE(N67:N78) ->  | O79: =MAX(O67:O78) -> 0

Sheet SO2
A1: =+'Cover Page'!$B$29 -> Annual Performance Report 2023 | E1: =+'Cover Page'!$B$33 -> SUEZ R&R Kirklees EfW
A3: Monitoring of Sulphur dioxide emissions | D3: Whole Installation | G3: See Notes in Cell Q3 | J3: =+A3 -> Monitoring of Sulphur dioxide emissions | N3: Per Combustion Line | Q3: Notes:
Q4: User to add logic to complete Whole installation, Table A5:G18. From the data in Per Combustion Line, Table J6:O79, subject to No. of lines installed
A5: mg/Nm3 | B5: 1/2 Hourly Reference Periods | E5: Daily Reference Periods
A6: =+'Cover Page'!C39 -> 2023 | B6: 1/2 hourly SO2 ELV | C6: Monthly 1/2 hourly mean | D6: Highest 1/2 hourly maximum | E6: Daily SO2 ELV* | F6: Monthly daily mean | G6: Highest daily maximum | J6: =+A6 -> 2023 | K6: mg/Nm3 | L6: Monthly 1/2 hourly mean | M6: Monthly 1/2 hourly maximum | N6: Monthly daily mean | O6: Monthly daily maximum
A7: Jan | B7: 200 | C7: =AVERAGE(L7,L22,L37,L52,L67) -> 5.6 | D7: =MAX(M7,M22,M37,M52,M67) -> 86.1 | E7: 50 | F7: =AVERAGE(N7,N22,N37,N52,N67) -> 5.6 | G7: =MAX(O7,O22,O37,O52,O67) -> 9.7 | J7: A1 | K7: Jan | L7: 5.6 | M7: 86.1 | N7: 5.6 | O7: 9.7
A8: Feb | B8: 200 | C8: =AVERAGE(L8,L23,L38,L53,L68) -> 8.2 | D8: =MAX(M8,M23,M38,M53,M68) -> 119.5 | E8: 50 | F8: =AVERAGE(N8,N23,N38,N53,N68) -> 8.2 | G8: =MAX(O8,O23,O38,O53,O68) -> 17.8 | K8: Feb | L8: 8.2 | M8: 119.5 | N8: 8.2 | O8: 17.8
A9: Mar | B9: 200 | C9: 7.8 | D9: 102.3 | E9: 50 | F9: 7.8 | G9: 14.2 | K9: Mar | L9: 7.8 | M9: 102.3 | N9: 7.8 | O9: 14.2 | Q9: Whole Installation table A5:G18:
A10: Apr | B10: 200 | C10: 6 | D10: 195.3 | E10: 50 | F10: 6 | G10: 13.5 | K10: Apr | L10: 6 | M10: 195.3 | N10: 6 | O10: 13.5 | Q10: Mean: for 1/2 hourly and daily periods calculate mean of values across all operational combustion lines for the month
A11: May | B11: 200 | C11: 8.4 | D11: 71.4 | E11: 50 | F11: 8.4 | G11: 12.7 | K11: May | L11: 8.4 | M11: 71.4 | N11: 8.4 | O11: 12.7
A12: Jun | B12: 200 | C12: 19.4 | D12: 181.8 | E12: 50 | F12: 19.4 | G12: 45.6 | K12: Jun | L12: 19.4 | M12: 181.8 | N12: 19.4 | O12: 45.6
A13: Jul | B13: 200 | C13: 12.5 | D13: 82 | E13: 50 | F13: 12.5 | G13: 16.2 | K13: Jul | L13: 12.5 | M13: 82 | N13: 12.5 | O13: 16.2 | Q13: Maximum: for 1/2 hourly and daily periods use the highest value across all operational combustion lines for the month
A14: Aug | B14: 200 | C14: 11.4 | D14: 87.4 | E14: 50 | F14: 11.4 | G14: 15.8 | K14: Aug | L14: 11.4 | M14: 87.4 | N14: 11.4 | O14: 15.8
A15: Sep | B15: 200 | C15: 9.5 | D15: 78.2 | E15: 50 | F15: 9.5 | G15: 14.4 | K15: Sep | L15: 9.5 | M15: 78.2 | N15: 9.5 | O15: 14.4
A16: Oct | B16: 200 | C16: 8.5 | D16: 77.8 | E16: 50 | F16: 8.5 | G16: 19.7 | K16: Oct | L16: 8.5 | M16: 77.8 | N16: 8.5 | O16: 19.7
A17: Nov | B17: 200 | C17: 10 | D17: 61.5 | E17: 50 | F17: 10 | G17: 15.5 | K17: Nov | L17: 10 | M17: 61.5 | N17: 10 | O17: 15.5
A18: Dec | B18: 200 | C18: 7 | D18: 67.8 | E18: 50 | F18: 7 | G18: 12.3 | K18: Dec | L18: 7 | M18: 67.8 | N18: 7 | O18: 12.3
E19: * ELV reduced to 40 mg/Nm3 on 3 December 2023 | K19: Annual | L19: =AVERAGE(L7:L18) -> 9.525 | M19: =MAX(M7:M18) -> 195.3 | N19: =AVERAGE(N7:N18) -> 9.525 | O19: =MAX(O7:O18) -> 45.6
J21: =+A6 -> 2023 | K21: mg/Nm3 | L21: Monthly 1/2 hourly mean | M21: Monthly 1/2 hourly maximum | N21: Monthly daily mean | O21: Monthly daily maximum
J22: A2 | K22: Jan
K23: Feb
K24: Mar
K25: Apr
K26: May
K27: Jun
K28: Jul
K29: Aug
K30: Sep
K31: Oct
K32: Nov
K33: Dec
K34: Annual | L34: =AVERAGE(L22:L33) ->  | M34: =MAX(M22:M33) -> 0 | N34: =AVERAGE(N22:N33) ->  | O34: =MAX(O22:O33) -> 0
J36: =+A6 -> 2023 | K36: mg/Nm3 | L36: Monthly 1/2 hourly mean | M36: Monthly 1/2 hourly maximum | N36: Monthly daily mean | O36: Monthly daily maximum
J37: A3 | K37: Jan
K38: Feb
K39: Mar
K40: Apr
K41: May
K42: Jun
K43: Jul
K44: Aug
K45: Sep
K46: Oct
K47: Nov
A48: Comments : | K48: Dec
K49: Annual | L49: =AVERAGE(L37:L48) ->  | M49: =MAX(M37:M48) -> 0 | N49: =AVERAGE(N37:N48) ->  | O49: =MAX(O37:O48) -> 0
J51: =+A6 -> 2023 | K51: mg/Nm3 | L51: Monthly 1/2 hourly mean | M51: Monthly 1/2 hourly maximum | N51: Monthly daily mean | O51: Monthly daily maximum
J52: A4 | K52: Jan
K53: Feb
K54: Mar
K55: Apr
K56: May
K57: Jun
K58: Jul
K59: Aug
K60: Sep
K61: Oct
K62: Nov
K63: Dec
K64: Annual | L64: =AVERAGE(L52:L63) ->  | M64: =MAX(M52:M63) -> 0 | N64: =AVERAGE(N52:N63) ->  | O64: =MAX(O52:O63) -> 0
J66: =+A6 -> 2023 | K66: mg/Nm3 | L66: Monthly 1/2 hourly mean | M66: Monthly 1/2 hourly maximum | N66: Monthly daily mean | O66: Monthly daily maximum
J67: A5 | K67: Jan
K68: Feb
K69: Mar
K70: Apr
K71: May
K72: Jun
K73: Jul
K74: Aug
K75: Sep
K76: Oct
K77: Nov
K78: Dec
K79: Annual | L79: =AVERAGE(L67:L78) ->  | M79: =MAX(M67:M78) -> 0 | N79: =AVERAGE(N67:N78) ->  | O79: =MAX(O67:O78) -> 0

Sheet NOx
A1: =+'Cover Page'!$B$29 -> Annual Performance Report 2023 | E1: =+'Cover Page'!$B$33 -> SUEZ R&R Kirklees EfW
A3: Monitoring of Oxides of Nitrogen emissions | D3: Whole Installation | G3: See Notes in Cell Q3 | J3: =+A3 -> Monitoring of Oxides of Nitrogen emissions | N3: Per Combustion Line | Q3: Notes:
Q4: User to add logic to complete Whole installation, Table A5:G18. From the data in Per Combustion Line, Table J6:O79, subject to No. of lines installed
A5: mg/Nm3 | B5: 1/2 Hourly Reference Periods | E5: Daily Reference Periods
A6: =+'Cover Page'!C39 -> 2023 | B6: 1/2 hourly NOx ELV | C6: Monthly 1/2 hourly mean | D6: Highest 1/2 hourly maximum | E6: Daily NOx ELV* | F6: Monthly daily mean | G6: Highest daily maximum | J6: =+A6 -> 2023 | K6: mg/Nm3 | L6: Monthly 1/2 hourly mean | M6: Monthly 1/2 hourly maximum | N6: Monthly daily mean | O6: Monthly daily maximum
A7: Jan | B7: 400 | C7: =AVERAGE(L7,L22,L37,L52,L67) -> 145.9 | D7: =MAX(M7,M22,M37,M52,M67) -> 198.7 | E7: 200 | F7: =AVERAGE(N7,N22,N37,N52,N67) -> 145.9 | G7: =MAX(O7,O22,O37,O52,O67) -> 153.5 | J7: A1 | K7: Jan | L7: 145.9 | M7: 198.7 | N7: 145.9 | O7: 153.5
A8: Feb | B8: 400 | C8: =AVERAGE(L8,L23,L38,L53,L68) -> 152.6 | D8: =MAX(M8,M23,M38,M53,M68) -> 196.6 | E8: 200 | F8: =AVERAGE(N8,N23,N38,N53,N68) -> 152.6 | G8: =MAX(O8,O23,O38,O53,O68) -> 159.1 | K8: Feb | L8: 152.6 | M8: 196.6 | N8: 152.6 | O8: 159.1
A9: Mar | B9: 400 | C9: 145.8 | D9: 173.4 | E9: 200 | F9: 145.8 | G9: 156.7 | K9: Mar | L9: 145.8 | M9: 173.4 | N9: 145.8 | O9: 156.7 | Q9: Whole Installation table A5:G18:
A10: Apr | B10: 400 | C10: 149.3 | D10: 179.9 | E10: 200 | F10: 149.3 | G10: 154.5 | K10: Apr | L10: 149.3 | M10: 179.9 | N10: 149.3 | O10: 154.5 | Q10: Mean: for 1/2 hourly and daily periods calculate mean of values across all operational combustion lines for the month
A11: May | B11: 400 | C11: 146.1 | D11: 17.03 | E11: 200 | F11: 146.1 | G11: 149.3 | K11: May | L11: 146.1 | M11: 17.03 | N11: 146.1 | O11: 149.3
A12: Jun | B12: 400 | C12: 148.9 | D12: 207.4 | E12: 200 | F12: 148.9 | G12: 154.7 | K12: Jun | L12: 148.9 | M12: 207.4 | N12: 148.9 | O12: 154.7
A13: Jul | B13: 400 | C13: 155 | D13: 193 | E13: 200 | F13: 155 | G13: 170 | K13: Jul | L13: 155 | M13: 193 | N13: 155 | O13: 170 | Q13: Maximum: for 1/2 hourly and daily periods use the highest value across all operational combustion lines for the month
A14: Aug | B14: 400 | C14: 154.7 | D14: 188.6 | E14: 200 | F14: 154.7 | G14: 165.6 | K14: Aug | L14: 154.7 | M14: 188.6 | N14: 154.7 | O14: 165.6
A15: Sep | B15: 400 | C15: 160.8 | D15: 187.1 | E15: 200 | F15: 160.8 | G15: 167.9 | K15: Sep | L15: 160.8 | M15: 187.1 | N15: 160.8 | O15: 167.9
A16: Oct | B16: 400 | C16: 153.5 | D16: 182.5 | E16: 200 | F16: 153.5 | G16: 160.2 | K16: Oct | L16: 153.5 | M16: 182.5 | N16: 153.5 | O16: 160.2
A17: Nov | B17: 400 | C17: 139 | D17: 182.7 | E17: 200 | F17: 139 | G17: 150.5 | K17: Nov | L17: 139 | M17: 182.7 | N17: 139 | O17: 150.5
A18: Dec | B18: 400 | C18: 134 | D18: 167.6 | E18: 200 | F18: 134 | G18: 143.6 | K18: Dec | L18: 134 | M18: 167.6 | N18: 134 | O18: 143.6
E19: * ELV reduced to 180 mg/Nm3 on 3 December 2023 | K19: Annual | L19: =AVERAGE(L7:L18) -> 148.8 | M19: =MAX(M7:M18) -> 207.4 | N19: =AVERAGE(N7:N18) -> 148.8 | O19: =MAX(O7:O18) -> 170
J21: =+A6 -> 2023 | K21: mg/Nm3 | L21: Monthly 1/2 hourly mean | M21: Monthly 1/2 hourly maximum | N21: Monthly daily mean | O21: Monthly daily maximum
J22: A2 | K22: Jan
K23: Feb
K24: Mar
K25: Apr
K26: May
K27: Jun
K28: Jul
K29: Aug
K30: Sep
K31: Oct
K32: Nov
K33: Dec
K34: Annual | L34: =AVERAGE(L22:L33) ->  | M34: =MAX(M22:M33) -> 0 | N34: =AVERAGE(N22:N33) ->  | O34: =MAX(O22:O33) -> 0
J36: =+A6 -> 2023 | K36: mg/Nm3 | L36: Monthly 1/2 hourly mean | M36: Monthly 1/2 hourly maximum | N36: Monthly daily mean | O36: Monthly daily maximum
J37: A3 | K37: Jan
K38: Feb
K39: Mar
K40: Apr
K41: May
K42: Jun
K43: Jul
K44: Aug
K45: Sep
K46: Oct
K47: Nov
A48: Comments : | K48: Dec
K49: Annual | L49: =AVERAGE(L37:L48) ->  | M49: =MAX(M37:M48) -> 0 | N49: =AVERAGE(N37:N48) ->  | O49: =MAX(O37:O48) -> 0
J51: =+A6 -> 2023 | K51: mg/Nm3 | L51: Monthly 1/2 hourly mean | M51: Monthly 1/2 hourly maximum | N51: Monthly daily mean | O51: Monthly daily maximum
J52: A4 | K52: Jan
K53: Feb
K54: Mar
K55: Apr
K56: May
K57: Jun
K58: Jul
K59: Aug
K60: Sep
K61: Oct
K62: Nov
K63: Dec
K64: Annual | L64: =AVERAGE(L52:L63) ->  | M64: =MAX(M52:M63) -> 0 | N64: =AVERAGE(N52:N63) ->  | O64: =MAX(O52:O63) -> 0
J66: =+A6 -> 2023 | K66: mg/Nm3 | L66: Monthly 1/2 hourly mean | M66: Monthly 1/2 hourly maximum | N66: Monthly daily mean | O66: Monthly daily maximum
J67: A5 | K67: Jan
K68: Feb
K69: Mar
K70: Apr
K71: May
K72: Jun
K73: Jul
K74: Aug
K75: Sep
K76: Oct
K77: Nov
K78: Dec
K79: Annual | L79: =AVERAGE(L67:L78) ->  | M79: =MAX(M67:M78) -> 0 | N79: =AVERAGE(N67:N78) ->  | O79: =MAX(O67:O78) -> 0

Sheet TOC
A1: =+'Cover Page'!$B$29 -> Annual Performance Report 2023 | E1: =+'Cover Page'!$B$33 -> SUEZ R&R Kirklees EfW
A3: Monitoring of Total organic carbon emissions | D3: Whole Installation | G3: See Notes in Cell Q3 | J3: =+A3 -> Monitoring of Total organic carbon emissions | N3: Per Combustion Line | Q3: Notes:
Q4: User to add logic to complete Whole installation, Table A5:G18. From the data in Per Combustion Line, Table J6:O79, subject to No. of lines installed
A5: mg/Nm3 | B5: 1/2 Hourly Reference Periods | E5: Daily Reference Periods
A6: =+'Cover Page'!C39 -> 2023 | B6: 1/2 hourly TOC ELV | C6: Monthly 1/2 hourly mean | D6: Highest 1/2 hourly maximum | E6: Daily TOC ELV | F6: Monthly daily mean | G6: Highest daily maximum | J6: =+A6 -> 2023 | K6: mg/Nm3 | L6: Monthly 1/2 hourly mean | M6: Monthly 1/2 hourly maximum | N6: Monthly daily mean | O6: Monthly daily maximum
A7: Jan | B7: 20 | C7: =AVERAGE(L7,L22,L37,L52,L67) -> 0.6 | D7: =MAX(M7,M22,M37,M52,M67) -> 6 | E7: 10 | F7: =AVERAGE(N7,N22,N37,N52,N67) -> 0.6 | G7: =MAX(O7,O22,O37,O52,O67) -> 1 | J7: A1 | K7: Jan | L7: 0.6 | M7: 6 | N7: 0.6 | O7: 1
A8: Feb | B8: 20 | C8: =AVERAGE(L8,L23,L38,L53,L68) -> 0.6 | D8: =MAX(M8,M23,M38,M53,M68) -> 6 | E8: 10 | F8: =AVERAGE(N8,N23,N38,N53,N68) -> 0.6 | G8: =MAX(O8,O23,O38,O53,O68) -> 1 | K8: Feb | L8: 0.6 | M8: 6 | N8: 0.6 | O8: 1
A9: Mar | B9: 20 | C9: 0.3 | D9: 8.3 | E9: 10 | F9: 0.3 | G9: 0.5 | K9: Mar | L9: 0.3 | M9: 8.3 | N9: 0.3 | O9: 0.5 | Q9: Whole Installation table A5:G18:
A10: Apr | B10: 20 | C10: 0.2 | D10: 5.7 | E10: 10 | F10: 0.2 | G10: 0.5 | K10: Apr | L10: 0.2 | M10: 5.7 | N10: 0.2 | O10: 0.5 | Q10: Mean: for 1/2 hourly and daily periods calculate mean of values across all operational combustion lines for the month
A11: May | B11: 20 | C11: 0.3 | D11: 4.6 | E11: 10 | F11: 0.3 | G11: 0.6 | K11: May | L11: 0.3 | M11: 4.6 | N11: 0.3 | O11: 0.6
A12: Jun | B12: 20 | C12: 0.4 | D12: 7.6 | E12: 10 | F12: 0.4 | G12: 1.1 | K12: Jun | L12: 0.4 | M12: 7.6 | N12: 0.4 | O12: 1.1
A13: Jul | B13: 20 | C13: 0.3 | D13: 4.8 | E13: 10 | F13: 0.3 | G13: 0.5 | K13: Jul | L13: 0.3 | M13: 4.8 | N13: 0.3 | O13: 0.5 | Q13: Maximum: for 1/2 hourly and daily periods use the highest value across all operational combustion lines for the month
A14: Aug | B14: 20 | C14: 0.4 | D14: 6.7 | E14: 10 | F14: 0.4 | G14: 1.5 | K14: Aug | L14: 0.4 | M14: 6.7 | N14: 0.4 | O14: 1.5
A15: Sep | B15: 20 | C15: 0.3 | D15: 5.3 | E15: 10 | F15: 0.3 | G15: 0.5 | K15: Sep | L15: 0.3 | M15: 5.3 | N15: 0.3 | O15: 0.5
A16: Oct | B16: 20 | C16: 0.3 | D16: 6.5 | E16: 10 | F16: 0.3 | G16: 0.5 | K16: Oct | L16: 0.3 | M16: 6.5 | N16: 0.3 | O16: 0.5
A17: Nov | B17: 20 | C17: 0.3 | D17: 6.1 | E17: 10 | F17: 0.3 | G17: 0.6 | K17: Nov | L17: 0.3 | M17: 6.1 | N17: 0.3 | O17: 0.6
A18: Dec | B18: 20 | C18: 0.3 | D18: 5.9 | E18: 10 | F18: 0.3 | G18: 0.5 | K18: Dec | L18: 0.3 | M18: 5.9 | N18: 0.3 | O18: 0.5
K19: Annual | L19: =AVERAGE(L7:L18) -> 0.3583333333 | M19: =MAX(M7:M18) -> 8.3 | N19: =AVERAGE(N7:N18) -> 0.3583333333 | O19: =MAX(O7:O18) -> 1.5
J21: =+A6 -> 2023 | K21: mg/Nm3 | L21: Monthly 1/2 hourly mean | M21: Monthly 1/2 hourly maximum | N21: Monthly daily mean | O21: Monthly daily maximum
J22: A2 | K22: Jan
K23: Feb
K24: Mar
K25: Apr
K26: May
K27: Jun
K28: Jul
K29: Aug
K30: Sep
K31: Oct
K32: Nov
K33: Dec
K34: Annual | L34: =AVERAGE(L22:L33) ->  | M34: =MAX(M22:M33) -> 0 | N34: =AVERAGE(N22:N33) ->  | O34: =MAX(O22:O33) -> 0
J36: =+A6 -> 2023 | K36: mg/Nm3 | L36: Monthly 1/2 hourly mean | M36: Monthly 1/2 hourly maximum | N36: Monthly daily mean | O36: Monthly daily maximum
J37: A3 | K37: Jan
K38: Feb
K39: Mar
K40: Apr
K41: May
K42: Jun
K43: Jul
K44: Aug
K45: Sep
K46: Oct
K47: Nov
A48: Comments : | K48: Dec
K49: Annual | L49: =AVERAGE(L37:L48) ->  | M49: =MAX(M37:M48) -> 0 | N49: =AVERAGE(N37:N48) ->  | O49: =MAX(O37:O48) -> 0
J51: =+A6 -> 2023 | K51: mg/Nm3 | L51: Monthly 1/2 hourly mean | M51: Monthly 1/2 hourly maximum | N51: Monthly daily mean | O51: Monthly daily maximum
J52: A4 | K52: Jan
K53: Feb
K54: Mar
K55: Apr
K56: May
K57: Jun
K58: Jul
K59: Aug
K60: Sep
K61: Oct
K62: Nov
K63: Dec
K64: Annual | L64: =AVERAGE(L52:L63) ->  | M64: =MAX(M52:M63) -> 0 | N64: =AVERAGE(N52:N63) ->  | O64: =MAX(O52:O63) -> 0
J66: =+A6 -> 2023 | K66: mg/Nm3 | L66: Monthly 1/2 hourly mean | M66: Monthly 1/2 hourly maximum | N66: Monthly daily mean | O66: Monthly daily maximum
J67: A5 | K67: Jan
K68: Feb
K69: Mar
K70: Apr
K71: May
K72: Jun
K73: Jul
K74: Aug
K75: Sep
K76: Oct
K77: Nov
K78: Dec
K79: Annual | L79: =AVERAGE(L67:L78) ->  | M79: =MAX(M67:M78) -> 0 | N79: =AVERAGE(N67:N78) ->  | O79: =MAX(O67:O78) -> 0

Sheet Particulates
A1: =+'Cover Page'!$B$29 -> Annual Performance Report 2023 | E1: =+'Cover Page'!$B$33 -> SUEZ R&R Kirklees EfW
A3: Monitoring of Particulate matter emissions | D3: Whole Installation | G3: See Notes in Cell Q3 | J3: =+A3 -> Monitoring of Particulate matter emissions | N3: Per Combustion Line | Q3: Notes:
Q4: User to add logic to complete Whole installation, Table A5:G18. From the data in Per Combustion Line, Table J6:O79, subject to No. of lines installed
A5: mg/Nm3 | B5: 1/2 Hourly Reference Periods | E5: Daily Reference Periods
A6: =+'Cover Page'!C39 -> 2023 | B6: 1/2 hourly PM ELV | C6: Monthly 1/2 hourly mean | D6: Highest 1/2 hourly maximum | E6: Daily PM ELV* | F6: Monthly daily mean | G6: Highest daily maximum | J6: =+A6 -> 2023 | K6: mg/Nm3 | L6: Monthly 1/2 hourly mean | M6: Monthly 1/2 hourly maximum | N6: Monthly daily mean | O6: Monthly daily maximum
A7: Jan | B7: 30 | C7: =AVERAGE(L7,L22,L37,L52,L67) -> 1.2 | D7: =MAX(M7,M22,M37,M52,M67) -> 4 | E7: 10 | F7: =AVERAGE(N7,N22,N37,N52,N67) -> 1.2 | G7: =MAX(O7,O22,O37,O52,O67) -> 2.2 | J7: A1 | K7: Jan | L7: 1.2 | M7: 4 | N7: 1.2 | O7: 2.2
A8: Feb | B8: 30 | C8: =AVERAGE(L8,L23,L38,L53,L68) -> 1.2 | D8: =MAX(M8,M23,M38,M53,M68) -> 3.6 | E8: 10 | F8: =AVERAGE(N8,N23,N38,N53,N68) -> 1.2 | G8: =MAX(O8,O23,O38,O53,O68) -> 2.2 | K8: Feb | L8: 1.2 | M8: 3.6 | N8: 1.2 | O8: 2.2
A9: Mar | B9: 30 | C9: 1.6 | D9: 10.5 | E9: 10 | F9: 1.6 | G9: 2.7 | K9: Mar | L9: 1.6 | M9: 10.5 | N9: 1.6 | O9: 2.7 | Q9: Whole Installation table A5:G18:
A10: Apr | B10: 30 | C10: 1.4 | D10: 5.5 | E10: 10 | F10: 1.4 | G10: 2 | K10: Apr | L10: 1.4 | M10: 5.5 | N10: 1.4 | O10: 2 | Q10: Mean: for 1/2 hourly and daily periods calculate mean of values across all operational combustion lines for the month
A11: May | B11: 30 | C11: 0.8 | D11: 7.9 | E11: 10 | F11: 0.8 | G11: 1.2 | K11: May | L11: 0.8 | M11: 7.9 | N11: 0.8 | O11: 1.2
A12: Jun | B12: 30 | C12: 0.4 | D12: 11.2 | E12: 10 | F12: 0.4 | G12: 1 | K12: Jun | L12: 0.4 | M12: 11.2 | N12: 0.4 | O12: 1
A13: Jul | B13: 30 | C13: 1.1 | D13: 9.5 | E13: 10 | F13: 1.1 | G13: 1.3 | K13: Jul | L13: 1.1 | M13: 9.5 | N13: 1.1 | O13: 1.3 | Q13: Maximum: for 1/2 hourly and daily periods use the highest value across all operational combustion lines for the month
A14: Aug | B14: 30 | C14: 1.2 | D14: 11.7 | E14: 10 | F14: 1.2 | G14: 2.3 | K14: Aug | L14: 1.2 | M14: 11.7 | N14: 1.2 | O14: 2.3
A15: Sep | B15: 30 | C15: 0.9 | D15: 4.4 | E15: 10 | F15: 0.9 | G15: 1.3 | K15: Sep | L15: 0.9 | M15: 4.4 | N15: 0.9 | O15: 1.3
A16: Oct | B16: 30 | C16: 1.1 | D16: 5.1 | E16: 10 | F16: 1.1 | G16: 1.8 | K16: Oct | L16: 1.1 | M16: 5.1 | N16: 1.1 | O16: 1.8
A17: Nov | B17: 30 | C17: 0.8 | D17: 2.4 | E17: 10 | F17: 0.8 | G17: 1.1 | K17: Nov | L17: 0.8 | M17: 2.4 | N17: 0.8 | O17: 1.1
A18: Dec | B18: 30 | C18: 1 | D18: 5.6 | E18: 10 | F18: 1 | G18: 1.7 | K18: Dec | L18: 1 | M18: 5.6 | N18: 1 | O18: 1.7
E19: * ELV reduced to 5 mg/Nm3 on 3 December 2023 | K19: Annual | L19: =AVERAGE(L7:L18) -> 1.058333333 | M19: =MAX(M7:M18) -> 11.7 | N19: =AVERAGE(N7:N18) -> 1.058333333 | O19: =MAX(O7:O18) -> 2.7
J21: =+A6 -> 2023 | K21: mg/Nm3 | L21: Monthly 1/2 hourly mean | M21: Monthly 1/2 hourly maximum | N21: Monthly daily mean | O21: Monthly daily maximum
J22: A2 | K22: Jan
K23: Feb
K24: Mar
K25: Apr
K26: May
K27: Jun
K28: Jul
K29: Aug
K30: Sep
K31: Oct
K32: Nov
K33: Dec
K34: Annual | L34: =AVERAGE(L22:L33) ->  | M34: =MAX(M22:M33) -> 0 | N34: =AVERAGE(N22:N33) ->  | O34: =MAX(O22:O33) -> 0
J36: =+A6 -> 2023 | K36: mg/Nm3 | L36: Monthly 1/2 hourly mean | M36: Monthly 1/2 hourly maximum | N36: Monthly daily mean | O36: Monthly daily maximum
J37: A3 | K37: Jan
K38: Feb
K39: Mar
K40: Apr
K41: May
K42: Jun
K43: Jul
K44: Aug
K45: Sep
K46: Oct
K47: Nov
A48: Comments : | K48: Dec
K49: Annual | L49: =AVERAGE(L37:L48) ->  | M49: =MAX(M37:M48) -> 0 | N49: =AVERAGE(N37:N48) ->  | O49: =MAX(O37:O48) -> 0
J51: =+A6 -> 2023 | K51: mg/Nm3 | L51: Monthly 1/2 hourly mean | M51: Monthly 1/2 hourly maximum | N51: Monthly daily mean | O51: Monthly daily maximum
J52: A4 | K52: Jan
K53: Feb
K54: Mar
K55: Apr
K56: May
K57: Jun
K58: Jul
K59: Aug
K60: Sep
K61: Oct
K62: Nov
K63: Dec
K64: Annual | L64: =AVERAGE(L52:L63) ->  | M64: =MAX(M52:M63) -> 0 | N64: =AVERAGE(N52:N63) ->  | O64: =MAX(O52:O63) -> 0
J66: =+A6 -> 2023 | K66: mg/Nm3 | L66: Monthly 1/2 hourly mean | M66: Monthly 1/2 hourly maximum | N66: Monthly daily mean | O66: Monthly daily maximum
J67: A5 | K67: Jan
K68: Feb
K69: Mar
K70: Apr
K71: May
K72: Jun
K73: Jul
K74: Aug
K75: Sep
K76: Oct
K77: Nov
K78: Dec
K79: Annual | L79: =AVERAGE(L67:L78) ->  | M79: =MAX(M67:M78) -> 0 | N79: =AVERAGE(N67:N78) ->  | O79: =MAX(O67:O78) -> 0

Sheet CO 0.5 hourly
A1: =+'Cover Page'!$B$29 -> Annual Performance Report 2023 | E1: =+'Cover Page'!$B$33 -> SUEZ R&R Kirklees EfW
A3: Monitoring of Carbon Monoxide (half hourly) | D3: Whole Installation | G3: See Notes in Cell Q3 | J3: =+A3 -> Monitoring of Carbon Monoxide (half hourly) | N3: Per Combustion Line | Q3: Notes:
A5: Please complete this tab for your plant if you have 1/2 hourly CO ELVs; otherwise, leave it blank and complete the CO 95% 10 min tab
Q7: User to add logic to complete Whole installation, Table A5:G18. From the data in Per Combustion Line, Table J6:O79, subject to No. of lines installed
A8: mg/Nm3 | B8: 1/2 Hourly Reference Periods | E8: Daily Reference Periods
A9: =+'Cover Page'!C39 -> 2023 | B9: 1/2 hourly CO ELV | C9: Monthly 1/2 hourly mean | D9: Highest 1/2 hourly maximum | E9: Daily CO ELV | F9: Monthly daily mean | G9: Highest daily maximum | J9: =+A9 -> 2023 | K9: mg/Nm3 | L9: Monthly 1/2 hourly mean | M9: Monthly 1/2 hourly maximum | N9: Monthly daily mean | O9: Monthly daily maximum
A10: Jan | B10: 100 | E10: 50 | J10: A1 | K10: Jan
A11: Feb | B11: =+B10 -> 100 | E11: =+E10 -> 50 | K11: Feb
A12: Mar | B12: =+B11 -> 100 | E12: =+E11 -> 50 | K12: Mar | Q12: Whole Installation table A5:G18:
A13: Apr | B13: 100 | E13: 50 | K13: Apr | Q13: Mean: for 1/2 hourly and daily periods calculate mean of values across all operational combustion lines for the month
A14: May | B14: 100 | E14: 50 | K14: May
A15: Jun | B15: 100 | E15: 50 | K15: Jun
A16: Jul | B16: 100 | E16: 50 | K16: Jul | Q16: Maximum: for 1/2 hourly and daily periods use the highest value across all operational combustion lines for the month
A17: Aug | B17: 100 | E17: 50 | K17: Aug
A18: Sep | B18: 100 | E18: 50 | K18: Sep
A19: Oct | B19: 100 | E19: 50 | K19: Oct
A20: Nov | B20: 100 | E20: 50 | K20: Nov
A21: Dec | B21: 100 | E21: 50 | K21: Dec
K22: Annual | L22: =AVERAGE(L10:L21) ->  | M22: =MAX(M10:M21) -> 0 | N22: =AVERAGE(N10:N21) ->  | O22: =MAX(O10:O21) -> 0
J24: =+A9 -> 2023 | K24: mg/Nm3 | L24: Monthly 1/2 hourly mean | M24: Monthly 1/2 hourly maximum | N24: Monthly daily mean | O24: Monthly daily maximum
J25: A2 | K25: Jan
K26: Feb
K27: Mar
K28: Apr
K29: May
K30: Jun
K31: Jul
K32: Aug
K33: Sep
K34: Oct
K35: Nov
K36: Dec
K37: Annual | L37: =AVERAGE(L25:L36) ->  | M37: =MAX(M25:M36) -> 0 | N37: =AVERAGE(N25:N36) ->  | O37: =MAX(O25:O36) -> 0
J39: =+A9 -> 2023 | K39: mg/Nm3 | L39: Monthly 1/2 hourly mean | M39: Monthly 1/2 hourly maximum | N39: Monthly daily mean | O39: Monthly daily maximum
J40: A3 | K40: Jan
K41: Feb
K42: Mar
K43: Apr
K44: May
K45: Jun
K46: Jul
K47: Aug
K48: Sep
K49: Oct
K50: Nov
A51: Comments : | K51: Dec
K52: Annual | L52: =AVERAGE(L40:L51) ->  | M52: =MAX(M40:M51) -> 0 | N52: =AVERAGE(N40:N51) ->  | O52: =MAX(O40:O51) -> 0
J54: =+A9 -> 2023 | K54: mg/Nm3 | L54: Monthly 1/2 hourly mean | M54: Monthly 1/2 hourly maximum | N54: Monthly daily mean | O54: Monthly daily maximum
J55: A4 | K55: Jan
K56: Feb
K57: Mar
K58: Apr
K59: May
K60: Jun
K61: Jul
K62: Aug
K63: Sep
K64: Oct
K65: Nov
K66: Dec
K67: Annual | L67: =AVERAGE(L55:L66) ->  | M67: =MAX(M55:M66) -> 0 | N67: =AVERAGE(N55:N66) ->  | O67: =MAX(O55:O66) -> 0
J69: =+A9 -> 2023 | K69: mg/Nm3 | L69: Monthly 1/2 hourly mean | M69: Monthly 1/2 hourly maximum | N69: Monthly daily mean | O69: Monthly daily maximum
J70: A5 | K70: Jan
K71: Feb
K72: Mar
K73: Apr
K74: May
K75: Jun
K76: Jul
K77: Aug
K78: Sep
K79: Oct
K80: Nov
K81: Dec
K82: Annual | L82: =AVERAGE(L70:L81) ->  | M82: =MAX(M70:M81) -> 0 | N82: =AVERAGE(N70:N81) ->  | O82: =MAX(O70:O81) -> 0

Sheet CO 95% 10 min
A1: =+'Cover Page'!$B$29 -> Annual Performance Report 2023 | E1: =+'Cover Page'!$B$33 -> SUEZ R&R Kirklees EfW
A3: Monitoring of Carbon Monoxide (10-minute avg) | E3: Whole Installation | H3: See Notes in Cell S3 | J3: =+A3 -> Monitoring of Carbon Monoxide (10-minute avg) | O3: Per Combustion Line | Q3: Notes: | S3: Notes:
A5: Please complete this tab for your plant if you have 10-minute average CO ELVs; otherwise, leave it blank and complete the CO 0.5 hourly tab
S7: User to add logic to complete Whole installation, Table A5:H18. From the data in Per Combustion Line, Table K6:Q79, subject to No. of lines installed
A8: mg/Nm3 | B8: 10-minute Reference Periods | F8: Daily Reference Periods
A9: =+'Cover Page'!C39 -> 2023 | B9: 95%ile 10-min avg CO ELV | C9: 95%ile 10-min avg maximum | D9: Monthly CO 10-min avg mean | E9: 10-min avg maximum | F9: Daily CO ELV | G9: Monthly daily mean | H9: Highest daily maximum | K9: =+A9 -> 2023 | L9: mg/Nm3 | M9: 95%ile 10-min avg maximum | N9: Monthly CO 10-min avg mean | O9: 10-min avg maximum | P9: Monthly daily mean | Q9: Monthly daily maximum
A10: Jan | B10: 150 | C10: =AVERAGE(M10,M25,M40,M55,M70) -> 94.5 | D10: =AVERAGE(N10,N25,N40,N55,N70) -> 25.7 | E10: =MAX(O10,O25,O40,O55,O70) -> 576.5 | F10: 50 | G10: =AVERAGE(P10,P25,P40,P55,P70) -> 25.7 | H10: =MAX(Q10,Q25,Q40,Q55,Q70) -> 39.1 | K10: A1 | L10: Jan | M10: 94.5 | N10: 25.7 | O10: 576.5 | P10: 25.7 | Q10: 39.1
A11: Feb | B11: =+B10 -> 150 | C11: =AVERAGE(M11,M26,M41,M56,M71) -> 75.2 | D11: 24.5 | E11: =MAX(O11,O26,O41,O56,O71) -> 448.4 | F11: =+F10 -> 50 | G11: =AVERAGE(P11,P26,P41,P56,P71) -> 24.5 | H11: =MAX(Q11,Q26,Q41,Q56,Q71) -> 33.7 | L11: Feb | M11: 75.2 | N11: 24.5 | O11: 448.4 | P11: 24.5 | Q11: 33.7
A12: Mar | B12: =+B11 -> 150 | C12: 110.7 | D12: 29.8 | E12: 419.1 | F12: =+F11 -> 50 | G12: 29.8 | H12: 42.1 | L12: Mar | M12: 110.7 | N12: 29.8 | O12: 419.1 | P12: 29.8 | Q12: 42.1 | S12: Whole Installation table A5:H18:
A13: Apr | B13: 150 | C13: 107 | D13: 25.7 | E13: 389.4 | F13: 50 | G13: 25.7 | H13: 41.1 | L13: Apr | M13: 107 | N13: 25.7 | O13: 389.4 | P13: 25.7 | Q13: 41.1 | S13: Mean: for 10-min and daily periods use average of all operational combustion lines.
A14: May | B14: 150 | C14: 75.1 | D14: 24.3 | E14: 392.9 | F14: 50 | G14: 24.3 | H14: 28.9 | L14: May | M14: 75.1 | N14: 24.3 | O14: 392.9 | P14: 24.3 | Q14: 28.9
A15: Jun | B15: 150 | C15: 111.4 | D15: 29.8 | E15: 773.9 | F15: 50 | G15: 29.8 | H15: 39.5 | L15: Jun | M15: 111.4 | N15: 29.8 | O15: 773.9 | P15: 29.8 | Q15: 39.5
A16: Jul | B16: 150 | D16: 34.3 | E16: 346.5 | F16: 50 | G16: 34.3 | H16: 45 | L16: Jul | N16: 34.3 | O16: 346.5 | P16: 34.3 | Q16: 45 | S16: Maximum: for 10-min and daily periods use the highest of all operational combustion lines in any month.
A17: Aug | B17: 150 | C17: 92 | D17: 35.9 | E17: 290.5 | F17: 50 | G17: 35.9 | H17: 43.1 | L17: Aug | M17: 92 | N17: 35.9 | O17: 290.5 | P17: 35.9 | Q17: 43.1
A18: Sep | B18: 150 | C18: 100 | D18: 35.8 | E18: 429.2 | F18: 50 | G18: 35.8 | H18: 44.4 | L18: Sep | M18: 100 | N18: 35.8 | O18: 429.2 | P18: 35.8 | Q18: 44.4
A19: Oct | B19: 150 | C19: 116 | D19: 32 | E19: 375.3 | F19: 50 | G19: 32 | H19: 42 | L19: Oct | M19: 116 | N19: 32 | O19: 375.3 | P19: 32 | Q19: 42
A20: Nov | B20: 150 | C20: 94 | D20: 33.5 | E20: 449.9 | F20: 50 | G20: 33.5 | H20: 42.1 | L20: Nov | M20: 94 | N20: 33.5 | O20: 449.9 | P20: 33.5 | Q20: 42.1
A21: Dec | B21: 150 | C21: 93 | D21: 30.9 | E21: 432.7 | F21: 50 | G21: 30.9 | H21: 41.4 | L21: Dec | M21: 93 | N21: 30.9 | O21: 432.7 | P21: 30.9 | Q21: 41.4
L22: Annual | M22: =AVERAGE(M10:M21) -> 97.17272727 | O22: =MAX(O10:O21) -> 773.9 | P22: =AVERAGE(P10:P21) -> 30.18333333 | Q22: =MAX(Q10:Q21) -> 45
K24: =+A9 -> 2023 | L24: mg/Nm3 | M24: 95%ile 10-min avg maximum | N24: Monthly CO 10-min avg mean | O24: 10-min avg maximum | P24: Monthly daily mean | Q24: Monthly daily maximum
K25: A2 | L25: Jan
L26: Feb
L27: Mar
L28: Apr
L29: May
L30: Jun
L31: Jul
L32: Aug
L33: Sep
L34: Oct
L35: Nov
L36: Dec
L37: Annual | M37: =AVERAGE(M25:M36) ->  | O37: =MAX(O25:O36) -> 0 | P37: =AVERAGE(P25:P36) ->  | Q37: =MAX(Q25:Q36) -> 0
K39: =+A9 -> 2023 | L39: mg/Nm3 | M39: 95%ile 10-min avg maximum | N39: Monthly CO 10-min avg mean | O39: 10-min avg maximum | P39: Monthly daily mean | Q39: Monthly daily maximum
K40: A3 | L40: Jan
L41: Feb
L42: Mar
L43: Apr
L44: May
L45: Jun
L46: Jul
L47: Aug
L48: Sep
L49: Oct
L50: Nov
A51: Comments : | L51: Dec
A52: Environment Agency explanatory note: The 10-minute average ELV is based on the “95th percentile”. In this case this means that 95% of the 10 minute averages in the relevant 24-hour period (i.e. 137) must be below 150 mg/Nm3, and 5% (i.e. 7) are allowed to be any value above 150 mg/Nm3. Whilst we expect operators to minimise CO emissions at all times, it is perfectly acceptable for the value of the maximum 10-minute average to be above 150 mg/Nm3, provided the 95th percentile ELV has been met for that period. | L52: Annual | M52: =AVERAGE(M40:M51) ->  | O52: =MAX(O40:O51) -> 0 | P52: =AVERAGE(P40:P51) ->  | Q52: =MAX(Q40:Q51) -> 0
K54: =+A9 -> 2023 | L54: mg/Nm3 | M54: 95%ile 10-min avg maximum | N54: Monthly CO 10-min avg mean | O54: 10-min avg maximum | P54: Monthly daily mean | Q54: Monthly daily maximum
K55: A4 | L55: Jan
L56: Feb
L57: Mar
L58: Apr
L59: May
L60: Jun
L61: Jul
L62: Aug
L63: Sep
L64: Oct
L65: Nov
L66: Dec
L67: Annual | M67: =AVERAGE(M55:M66) ->  | O67: =MAX(O55:O66) -> 0 | P67: =AVERAGE(P55:P66) ->  | Q67: =MAX(Q55:Q66) -> 0
K69: =+A9 -> 2023 | L69: mg/Nm3 | M69: 95%ile 10-min avg maximum | N69: Monthly CO 10-min avg mean | O69: 10-min avg maximum | P69: Monthly daily mean | Q69: Monthly daily maximum
K70: A5 | L70: Jan
L71: Feb
L72: Mar
L73: Apr
L74: May
L75: Jun
L76: Jul
L77: Aug
L78: Sep
L79: Oct
L80: Nov
L81: Dec
L82: Annual | M82: =AVERAGE(M70:M81) ->  | O82: =MAX(O70:O81) -> 0 | P82: =AVERAGE(P70:P81) ->  | Q82: =MAX(Q70:Q81) -> 0

Sheet NH3
A1: =+'Cover Page'!$B$29 -> Annual Performance Report 2023 | E1: =+'Cover Page'!$B$33 -> SUEZ R&R Kirklees EfW
A3: Monitoring of Ammnonia emissions | D3: Whole Installation | G3: See Notes in Cell Q3 | J3: =+A3 -> Monitoring of Ammnonia emissions | N3: Per Combustion Line | Q3: Notes:
Q4: User to add logic to complete Whole installation, Table A5:G18. From the data in Per Combustion Line, Table J6:O79, subject to No. of lines installed
A5: mg/Nm3 | B5: 1/2 Hourly Reference Periods | E5: Daily Reference Periods
A6: =+'Cover Page'!C39 -> 2023 | B6: 1/2 hourly NH3 ELV | C6: Monthly 1/2 hourly mean | D6: Highest 1/2 hourly maximum | E6: Daily NH3 ELV* | F6: Monthly daily mean | G6: Highest daily maximum | J6: =+A6 -> 2023 | K6: mg/Nm3 | L6: Monthly 1/2 hourly mean | M6: Monthly 1/2 hourly maximum | N6: Monthly daily mean | O6: Monthly daily maximum
A7: Jan | B7: None | C7: =AVERAGE(L7,L22,L37,L52,L67) -> 0.8 | D7: =MAX(M7,M22,M37,M52,M67) -> 12.9 | E7: None | F7: =AVERAGE(N7,N22,N37,N52,N67) -> 0.8 | G7: =MAX(O7,O22,O37,O52,O67) -> 2.7 | J7: A1 | K7: Jan | L7: 0.8 | M7: 12.9 | N7: 0.8 | O7: 2.7
A8: Feb | B8: =+B7 -> None | C8: =AVERAGE(L8,L23,L38,L53,L68) -> 0.7 | D8: =MAX(M8,M23,M38,M53,M68) -> 3.8 | E8: None | F8: =AVERAGE(N8,N23,N38,N53,N68) -> 0.7 | G8: =MAX(O8,O23,O38,O53,O68) -> 0.9 | K8: Feb | L8: 0.7 | M8: 3.8 | N8: 0.7 | O8: 0.9
A9: Mar | B9: =+B8 -> None | C9: 0.8 | D9: 3 | E9: None | F9: 0.8 | G9: 1.2 | K9: Mar | L9: 0.8 | M9: 3 | N9: 0.8 | O9: 1.2 | Q9: Whole Installation table A5:G18:
A10: Apr | B10: None | C10: 0.7 | D10: 1.5 | E10: None | F10: 0.7 | G10: 0.8 | K10: Apr | L10: 0.7 | M10: 1.5 | N10: 0.7 | O10: 0.8 | Q10: Mean: for 1/2 hourly and daily periods calculate mean of values across all operational combustion lines for the month
A11: May | B11: None | C11: 0.8 | D11: 4 | E11: None | F11: 0.8 | G11: 1 | K11: May | L11: 0.8 | M11: 4 | N11: 0.8 | O11: 1
A12: Jun | B12: None | C12: 1 | D12: 5.6 | E12: None | F12: 1 | G12: 1.4 | K12: Jun | L12: 1 | M12: 5.6 | N12: 1 | O12: 1.4
A13: Jul | B13: None | C13: 0.8 | D13: 2.7 | E13: None | F13: 0.8 | G13: 1.1 | K13: Jul | L13: 0.8 | M13: 2.7 | N13: 0.8 | O13: 1.1 | Q13: Maximum: for 1/2 hourly and daily periods use the highest value across all operational combustion lines for the month
A14: Aug | B14: None | C14: 1 | D14: 8.6 | E14: None | F14: 1 | G14: 1.7 | K14: Aug | L14: 1 | M14: 8.6 | N14: 1 | O14: 1.7
A15: Sep | B15: None | C15: 0.7 | D15: 6.3 | E15: None | F15: 0.7 | G15: 1.2 | K15: Sep | L15: 0.7 | M15: 6.3 | N15: 0.7 | O15: 1.2
A16: Oct | B16: None | C16: 0.6 | D16: 4.6 | E16: None | F16: 0.6 | G16: 0.8 | K16: Oct | L16: 0.6 | M16: 4.6 | N16: 0.6 | O16: 0.8
A17: Nov | B17: None | C17: 0.8 | D17: 29 | E17: None | F17: 0.8 | G17: 1.8 | K17: Nov | L17: 0.8 | M17: 29 | N17: 0.8 | O17: 1.8
A18: Dec | B18: None | C18: 0.7 | D18: 26.7 | E18: 15 | F18: 0.7 | G18: 2 | K18: Dec | L18: 0.7 | M18: 26.7 | N18: 0.7 | O18: 2
E19: * ELV came into force on 3 December 2023 | K19: Annual | L19: =AVERAGE(L7:L18) -> 0.7833333333 | M19: =MAX(M7:M18) -> 29 | N19: =AVERAGE(N7:N18) -> 0.7833333333 | O19: =MAX(O7:O18) -> 2.7
J21: =+A6 -> 2023 | K21: mg/Nm3 | L21: Monthly 1/2 hourly mean | M21: Monthly 1/2 hourly maximum | N21: Monthly daily mean | O21: Monthly daily maximum
J22: A2 | K22: Jan
K23: Feb
K24: Mar
K25: Apr
K26: May
K27: Jun
K28: Jul
K29: Aug
K30: Sep
K31: Oct
K32: Nov
K33: Dec
K34: Annual | L34: =AVERAGE(L22:L33) ->  | M34: =MAX(M22:M33) -> 0 | N34: =AVERAGE(N22:N33) ->  | O34: =MAX(O22:O33) -> 0
J36: =+A6 -> 2023 | K36: mg/Nm3 | L36: Monthly 1/2 hourly mean | M36: Monthly 1/2 hourly maximum | N36: Monthly daily mean | O36: Monthly daily maximum
J37: A3 | K37: Jan
K38: Feb
K39: Mar
K40: Apr
K41: May
K42: Jun
K43: Jul
K44: Aug
K45: Sep
K46: Oct
K47: Nov
A48: Comments : | K48: Dec
A49: An indicated ELV value of zero in the table above means that no ammonia limit is/was set in the permit. | K49: Annual | L49: =AVERAGE(L37:L48) ->  | M49: =MAX(M37:M48) -> 0 | N49: =AVERAGE(N37:N48) ->  | O49: =MAX(O37:O48) -> 0
J51: =+A6 -> 2023 | K51: mg/Nm3 | L51: Monthly 1/2 hourly mean | M51: Monthly 1/2 hourly maximum | N51: Monthly daily mean | O51: Monthly daily maximum
J52: A4 | K52: Jan
K53: Feb
K54: Mar
K55: Apr
K56: May
K57: Jun
K58: Jul
K59: Aug
K60: Sep
K61: Oct
K62: Nov
K63: Dec
K64: Annual | L64: =AVERAGE(L52:L63) ->  | M64: =MAX(M52:M63) -> 0 | N64: =AVERAGE(N52:N63) ->  | O64: =MAX(O52:O63) -> 0
J66: =+A6 -> 2023 | K66: mg/Nm3 | L66: Monthly 1/2 hourly mean | M66: Monthly 1/2 hourly maximum | N66: Monthly daily mean | O66: Monthly daily maximum
J67: A5 | K67: Jan
K68: Feb
K69: Mar
K70: Apr
K71: May
K72: Jun
K73: Jul
K74: Aug
K75: Sep
K76: Oct
K77: Nov
K78: Dec
K79: Annual | L79: =AVERAGE(L67:L78) ->  | M79: =MAX(M67:M78) -> 0 | N79: =AVERAGE(N67:N78) ->  | O79: =MAX(O67:O78) -> 0
